Cogmind - Beta 12 @@@ ROGUE MODE // 2024.02.24 @ 16:19:18 Player: lyrabold Result: Fortifying 0b10! Performance ------------- Evolutions (9) 4500 Regions Visited (40) 8000 Robots Destroyed (1121) 5605 Value Destroyed (69057) 69057 Prototype IDs (147) 2940 Alien Tech Used (10) 2000 Bonus (67214) 67214 TOTAL SCORE: 159316 Bonus ------- Triggered High Security 1500 High Alert Combat Kills 40010 Follower Combat Kills 2224 Entered Garrisons 200 Network Hubs Disabled 400 Aligned with FarCom 300 Met Imprinter 300 Destroyed Z-Imprinter 1000 Triggered Deep Caves Wall 500 Exposed GOLEM Chamber 500 Met Zhirov 300 Met Warlord at Base 500 MAIN.C Attacked Warlord 500 Warlord Defense Kills 1612 Met R17 at Cetus 500 Found Hidden Lab 3000 Met Warlord at Research 2000 Scanned by Researcher 500 Destroyed MAIN.C Guards 500 Met MAIN.C 5000 Destroyed MAIN.C Shell 5000 Win 3000 Friendly Fire -2132 Cogmind --------- Core Integrity 959/1600 Matter 239/300 Energy 1216/1520 System Corruption 0% Temperature Cool (30) Movement Immobile (Siege) Location By MAIN.C's Side Parts ------- > --- POWER (3) -------- Zero-point Reactor Zero-point Reactor Zero-point Reactor > --- PROPULSION (6) --- Experimental Biometal Heavy Treads Experimental Biometal Heavy Treads High-density Centrium Heavy Treads > --- UTILITY (13) ----- Experimental Cooling System Huge Storage Unit Assembled Biocell Array Experimental Optical Array Assembled Combat Suite Precision Matter Filter Advanced Kinecellerator Experimental Weapon Cycler Experimental Weapon Shielding Heavy Regenerative Plating Thermal Barrier AEGIS Remote Shield > --- WEAPON (4) ------- XL Autogun Array > --- INVENTORY (25) --- Improved Quantum Reactor Experimental Coolant Injector Experimental Energy Well (600) Experimental Energy Well (600) Zionite Biocell (600) Zionite Biocell (600) Advanced Matter Compressor (400) Advanced Matter Compressor (400) Experimental Matter Compressor (500) Advanced Kinecellerator Improved Weapon Shielding Experimental Powered Armor Experimental EM Disruption Field AEGIS Remote Shield Antimissile System Long-range Tractor Beam Compact HERF Cannon Enhanced Nova Cannon Hypercooled Linear Accelerator Hypercooled Linear Accelerator Graviton Cannon Enhanced Gamma Bomb Array Ragnarok Missile Launcher Z-bomb Delivery System Peak State ------------ > --- POWER ------------ Improved Quantum Reactor Vortex Chain Reactor > --- PROPULSION ------- Experimental Biometal Heavy Treads High-density Centrium Heavy Treads High-density Centrium Heavy Treads > --- UTILITY ---------- Advanced Cooling System Huge Storage Unit Assembled Biocell Array Assembled Combat Suite Advanced Kinecellerator Advanced Weapon Cycler Advanced Transmission Jammer Experimental Cloaking Device Experimental Powered Armor Heavy Regenerative Plating Thermal Barrier Experimental Force Field > --- WEAPON ----------- Multirail Hypercooled Linear Accelerator Hypercooled Linear Accelerator Enhanced Gamma Bomb Array > --- INVENTORY -------- High-density Centrium Heavy Treads Experimental Cooling System Experimental Coolant Injector Advanced Energy Well Zionite Biocell Zionite Biocell Advanced Matter Compressor Advanced Matter Compressor Advanced Kinecellerator Experimental EM Disruption Field Improved Remote Force Field Long-range Tractor Beam Transdimensional Reconstructor Integrity Redistributor Subatomic Replicator HERF Cannon HERF Cannon Enhanced Nova Cannon XL Autogun Array Hypercooled Linear Accelerator Enhanced Gamma Bomb Array [Rating: 259] Favorites ----------- Power Assembled Flux Generator Engine Ion Engine Power Core Light Nuclear Core Reactor Assembled Flux Generator Propulsion Heavy Treads Treads Heavy Treads Leg Assembled Alloy Leg Utility Huge Storage Unit Device Assembled Combat Suite Storage Huge Storage Unit Processor Improved Signal Interpreter Hackware Improved Hacking Suite Protection Assembled Alloy Armor Weapon Assembled Focal Cannon Energy Gun Advanced Beam Rifle Energy Cannon Assembled Focal Cannon Ballistic Gun 8R-AWN's Boregun Ballistic Cannon Hypercooled Linear Accelerator Launcher Enhanced Gamma Bomb Array Special Weapon Plasma Cutter Impact Weapon CL-ANK's Mallet Slashing Weapon Makeshift Axe Piercing Weapon Plasma Lance Special Melee Weapon Improved Datajack Build | -11 -10 -10 -9 -9 -9 -8 -8 -8 -8 -7 -7 -7 -7 -7 -7 -7 -6 -6 -6 -6 -6 -6 -5 -5 -5 -5 -4 -4 -4 -4 -4 -3 -3 -3 -3 -2 -2 -2 -1 -1 ------- Run | Jun Mat Min Mat Min Exi Min Mat Gar Mat Fac Was Fac Low Low Zio Dee Pro Fac Ext Cet Arc Hub Fac Upp Upp Zhi Pro Fac Upp Upp War Pro Res Arm Lab Res Qua Sec Acc Com Slots Evolved 18 | . . . 2 . . . 2 . . 2 . . . . . . . 2 . . . . 2 . . . . 2 . . . . 2 . . 2 . . 2 . Power 2 | . . . . . . . . . . 1 . . . . . . . . . . . . . . . . . . . . . . 1 . . . . . . . Propulsion 4 | . . . 1 . . . 1 . . . . . . . . . . . . . . . . . . . . . . . . . . . . 2 . . . . Utility 10 | . . . 1 . . . 1 . . 1 . . . . . . . 2 . . . . 2 . . . . 1 . . . . . . . . . . 2 . Weapon 2 | . . . . . . . . . . . . . . . . . . . . . . . . . . . . 1 . . . . 1 . . . . . . . Parts Attached 1179 | 7 12 13 55 1 38 21 51 21 31 27 14 21 23 30 3 39 10 16 13 26 6 14 34 4 4 5 12 26 5 . 18 10 27 45 20 26 58 113 90 190 Power 53 | 1 2 2 4 . 5 1 2 1 1 4 3 1 . . . 1 . . . 6 . . . . . . . . . . 1 . 1 . 2 . 1 1 2 11 Engine 14 | 1 2 1 4 . 1 . 1 . . 2 . . . . . . . . . 2 . . . . . . . . . . . . . . . . . . . . Core 8 | . . 1 . . 2 . 1 1 1 2 . . . . . . . . . . . . . . . . . . . . . . . . . . . . . . Reactor 31 | . . . . . 2 1 . . . . 3 1 . . . 1 . . . 4 . . . . . . . . . . 1 . 1 . 2 . 1 1 2 11 Propulsion 76 | 2 2 . 11 . 4 2 5 4 9 2 3 . . 1 . 1 . . 1 1 1 . 2 . . . . 2 . . . . . 1 . 3 3 4 1 11 Treads 72 | 2 2 . 11 . 3 2 5 2 8 2 3 . . 1 . 1 . . 1 1 1 . 2 . . . . 2 . . . . . 1 . 3 3 4 1 11 Leg 4 | . . . . . 1 . . 2 1 . . . . . . . . . . . . . . . . . . . . . . . . . . . . . . . Wheel . | . . . . . . . . . . . . . . . . . . . . . . . . . . . . . . . . . . . . . . . . . Hover . | . . . . . . . . . . . . . . . . . . . . . . . . . . . . . . . . . . . . . . . . . Flight . | . . . . . . . . . . . . . . . . . . . . . . . . . . . . . . . . . . . . . . . . . Utility 762 | 2 5 2 14 1 17 11 27 11 14 14 6 14 9 21 . 18 6 15 9 7 5 12 32 4 4 4 8 20 4 . 16 10 25 42 12 20 42 83 65 131 Device 556 | 1 3 2 8 . 5 7 18 11 4 8 4 6 8 17 . 6 5 13 9 3 2 10 24 3 2 1 6 14 4 . 11 8 22 34 7 17 37 59 62 95 Storage 49 | 1 2 . 2 . 4 . 1 . . . . . . . . 2 . 2 . . . . 3 . . 2 . 4 . . 4 . . 1 1 1 2 1 . 16 Processor 17 | . . . . . . . 2 . 1 2 . 1 1 1 . . . . . . 1 1 . . . . 1 1 . . . . . . . 1 . . 1 3 Hackware 16 | . . . . . 5 . . . . . . 1 . . . . . . . . . . 1 . . . . . . . . . 2 6 . . . 1 . . Protection 124 | . . . 4 1 3 4 6 . 9 4 2 6 . 3 . 10 1 . . 4 2 1 4 1 2 1 1 1 . . 1 2 1 1 4 1 3 22 2 17 Artifact . | . . . . . . . . . . . . . . . . . . . . . . . . . . . . . . . . . . . . . . . . . Weapon 288 | 2 3 9 26 . 12 7 17 5 7 7 2 6 14 8 3 19 4 1 3 12 . 2 . . . 1 4 4 1 . 1 . 1 2 6 3 12 25 22 37 Energy Gun 29 | . . 3 13 . 1 2 6 2 2 . . . . . . . . . . . . . . . . . . . . . . . . . . . . . . . Energy Cannon 44 | . . 1 2 . . . . . . . 1 1 6 5 . 11 . . . . . . . . . . 2 . . . . . . . 2 . 2 3 5 3 Ballistic Gun 63 | 2 2 2 5 . 8 3 4 1 3 2 . 2 1 2 . 1 4 . . 9 . 2 . . . . . . . . 1 . . . . . . . . 9 Ballistic Cannon 51 | . . . . . . . . . . . . . . . . . . . . . . . . . . . 1 . . . . . 1 . 3 1 8 12 10 15 Launcher 68 | . . . 1 . . . 4 2 2 . . 1 7 1 2 4 . . 3 3 . . . . . . 1 4 1 . . . . 2 1 2 2 9 7 9 Special Weapon 14 | . 1 3 3 . 3 1 . . . 1 . . . . . . . 1 . . . . . . . . . . . . . . . . . . . 1 . . Impact Weapon 15 | . . . 1 . . 1 3 . . 3 1 2 . . 1 3 . . . . . . . . . . . . . . . . . . . . . . . . Slashing Weapon 1 | . . . 1 . . . . . . . . . . . . . . . . . . . . . . . . . . . . . . . . . . . . . Piercing Weapon 1 | . . . . . . . . . . . . . . . . . . . . . . . . . . . . . . . . . . . . . . . . 1 Special Melee Weapon 2 | . . . . . . . . . . 1 . . . . . . . . . . . . . . . 1 . . . . . . . . . . . . . . Unidentified Prototypes 79 | . . . 5 . 8 2 . . 1 . . . . 1 . 6 . . . 3 . 2 1 . 1 3 4 . 1 . 6 . 1 2 5 . 5 5 . 17 Corrupted Parts 3 | . . . . . . . . . . . . . . . . . . . . . . . . . . . . . . . . . . . . . 1 2 . . System Corruption 13 | . . . . . . . . . . . . . . . . . . . . . . . . . . . . . . . . . . . . . 3 10 . . Parts Lost 58 | . 1 2 6 1 4 1 2 8 . 3 . . . . . 8 1 1 . 6 . 1 3 . . . 1 1 . . 1 . . 2 . 1 . 2 . 2 Power 8 | . . . 1 . . . . 1 . 1 . . . . . 2 . . . 1 . . . . . . . . . . . . . . . 1 . 1 . . Propulsion 11 | . 1 . 1 . 2 . . 4 . 1 . . . . . . . . . 1 . . 1 . . . . . . . . . . . . . . . . . Utility 31 | . . . 2 1 1 1 2 2 . 1 . . . . . 6 1 1 . 3 . 1 2 . . . 1 1 . . 1 . . 1 . . . 1 . 2 Weapon 8 | . . 2 2 . 1 . . 1 . . . . . . . . . . . 1 . . . . . . . . . . . . . 1 . . . . . . Highest Loss Streak 7 | . 1 1 2 1 4 1 1 7 . 2 . . . . . 3 1 1 . 5 . 1 2 . . . 1 1 . . 1 . . 2 . 1 . 1 . 1 To Critical Strikes 4 | . . . . . 3 . . . . . . . . . . . . . . 1 . . . . . . . . . . . . . . . . . . . . Average Slot Usage (%) 80 | . 99 100 98 100 98 99 94 91 97 91 85 72 76 74 76 69 69 79 80 78 75 72 74 75 75 70 75 78 84 85 81 84 86 85 48 74 76 78 79 73 Engine 1 | . 14 12 10 11 8 . 6 2 . 10 . . . . . . . . . . . . . . . . . . . . . . . . . . . . . . Reactor 6 | . . . . . 2 10 1 . . . 12 15 15 15 15 10 7 6 6 8 5 6 5 5 5 5 4 5 5 5 5 5 9 9 5 8 8 7 7 7 Treads 14 | . 27 28 33 33 32 33 36 22 30 30 17 15 15 15 15 12 7 6 6 5 9 13 11 11 11 11 11 8 5 5 5 5 4 5 9 12 11 11 11 10 Leg 2 | . . . . . . . . 7 4 . . . . . . 3 14 13 13 13 6 . . . . . . 2 10 10 10 9 9 6 . . . . . . Device 17 | . 14 14 10 11 6 12 9 14 11 10 22 6 7 11 7 6 13 25 26 12 11 11 18 22 22 23 20 23 29 30 28 25 21 19 15 20 22 22 24 22 Storage 9 | . 14 14 11 11 13 11 9 9 9 7 7 7 7 7 7 9 15 13 13 13 13 13 10 11 11 11 11 10 10 10 10 10 9 9 6 7 8 8 7 8 Processor 1 | . . . . . . . 6 9 3 6 7 6 6 3 7 3 . . . . . 2 . . . . 2 1 . . . . . . . . . . 2 . Protection 8 | . . . 10 11 12 9 10 2 11 11 . 9 7 5 7 5 1 . . 10 13 12 10 10 10 9 10 10 10 10 11 14 12 12 4 8 7 9 9 9 Energy Gun 1 | . . 8 14 22 9 8 3 8 9 . . . . . . . . . . . . . . . . . . . . . . . . . . . . . . . Energy Cannon 6 | . . 5 4 . . . . . . . 1 . 12 14 12 7 2 12 12 2 12 12 10 10 11 3 10 14 14 15 9 14 13 12 3 7 3 . . . Ballistic Gun 2 | . 27 12 1 . 10 12 3 8 8 . 11 . . . . 1 5 . . 9 . . . . . . . . . . 1 . . . . . . . . 1 Ballistic Cannon 2 | . . . . . . . . . . . . . . . . . . . . . . . . . . . . . . . . . 1 4 1 4 11 14 12 6 Naked Turns . | . . . . . . . . . . . . . . . . . . . . . . . . . . . . . . . . . . . . . . . . . Heaviest Build 260 | 15 30 32 113 98 115 106 114 98 132 139 153 153 153 152 151 153 153 164 161 161 168 170 176 173 173 173 173 191 202 202 212 204 229 240 232 238 253 255 253 260 Greatest Support 265 | 40 40 40 69 63 63 75 112 82 104 104 140 140 140 140 140 140 70 60 60 80 160 160 180 150 150 150 150 150 60 60 60 80 60 160 180 240 260 265 265 265 Greatest Overweight (x) 6 | 1 . . 1 1 1 1 1 2 2 1 1 1 1 1 1 4 2 2 5 2 2 1 1 1 1 1 1 6 3 3 3 3 3 3 2 . 1 2 1 2 Average Overweight (x) . | . . . . 1 . 1 . 1 1 1 . . 1 . 1 . 1 2 2 1 1 . . 1 1 . 1 1 2 3 2 2 3 2 . . . . . . Largest Inventory Capacity 40 | 8 15 15 25 25 40 25 25 25 25 25 25 25 25 25 25 25 25 25 25 25 25 25 25 25 25 25 25 25 25 25 25 25 25 25 25 25 25 25 25 25 Average Capacity 24 | 7 11 15 24 25 24 25 25 25 25 25 25 25 25 25 25 25 25 25 25 25 25 25 24 25 25 25 25 25 25 25 25 25 25 25 17 25 25 25 25 24 Most Carried 25 | 5 15 15 25 25 25 25 25 25 25 25 25 25 25 25 25 25 25 25 25 25 25 25 25 25 25 25 25 25 25 25 25 25 25 25 25 25 25 25 25 25 Average Carried 23 | 2 10 14 24 24 23 24 24 24 24 24 24 24 24 24 24 23 23 24 24 23 24 24 23 23 24 24 24 23 22 24 24 24 24 24 12 24 24 24 24 22 Final Capacity 25 | 8 15 15 25 25 25 25 25 25 25 25 25 25 25 25 25 25 25 25 25 25 25 25 25 25 25 25 25 25 25 25 25 25 25 25 25 25 25 25 25 25 Final Carried 25 | 5 15 15 25 24 25 25 25 25 25 25 25 25 25 24 25 25 25 25 25 25 24 25 24 24 24 25 25 23 24 25 24 25 25 25 25 24 25 25 24 24 Class Distribution -------------------- 33% | Scavenger-Mutant 19% | Golem 16% | Mutant 9% | Scavenger-Tank 5% | Infiltrator-Golem 3% | Scavenger-Golem Dominant Class ---------------- Mutant | -10/Materials Mutant | -10/Mines Mutant | -9/Materials Mutant | -9/Mines Mutant | -9/Exiles Scavenger-Mutant | -8/Mines Scavenger-Mutant | -8/Materials Scavenger-Mutant | -8/Garrison Mutant | -8/Materials Scavenger-Mutant | -7/Factory Scavenger-Mutant | -7/Waste Scavenger-Mutant | -7/Factory Scavenger-Mutant | -7/Lower Caves Scavenger-Mutant | -7/Lower Caves Scavenger-Mutant | -7/Zion Scavenger-Mutant | -7/Deep Caves Infiltrator-Mutant | -6/Proximity Caves Infiltrator-Golem | -6/Factory Commander-Golem | -6/Extension Scavenger-Golem | -6/Cetus Golem | -6/Archives Golem | -6/Hub_04(d) Scavenger-Golem | -5/Factory Golem | -5/Upper Caves Golem | -5/Upper Caves Golem | -5/Zhirov Golem | -4/Proximity Caves Golem | -4/Factory Infiltrator-Golem | -4/Upper Caves Infiltrator-Golem | -4/Upper Caves Golem | -4/Warlord Golem | -3/Proximity Caves Scavenger-Tank | -3/Research Scavenger-Tank | -3/Armory Mutant | -3/Lab Machinist-Mutant | -2/Research Scavenger-Mutant | -2/Quarantine Scavenger-Mutant | -2/Section 7 Scavenger-Mutant | -1/Access Scavenger-Tank | -1/Command Resources | -11 -10 -10 -9 -9 -9 -8 -8 -8 -8 -7 -7 -7 -7 -7 -7 -7 -6 -6 -6 -6 -6 -6 -5 -5 -5 -5 -4 -4 -4 -4 -4 -3 -3 -3 -3 -2 -2 -2 -1 -1 ----------- Run | Jun Mat Min Mat Min Exi Min Mat Gar Mat Fac Was Fac Low Low Zio Dee Pro Fac Ext Cet Arc Hub Fac Upp Upp Zhi Pro Fac Upp Upp War Pro Res Arm Lab Res Qua Sec Acc Com Matter Collected 36669 | 327 499 172 734 5 838 141 990 365 629 279 384 188 471 1635 30 1719 100 196 221 724 30 504 596 70 70 . 175 384 95 40 189 50 405 711 . 600 1276 5650 5493 9684 Remotely 14572 | . . . . . . . . . . . . . . . . . . . . . . . . . . . . . . . . . 114 . . 237 460 3832 3696 6233 Salvage Created 84759 | 159 579 294 2035 102 510 120 1848 542 956 1326 2053 338 347 1438 . 2493 810 759 970 1469 305 1813 2954 864 274 . 454 2698 453 435 609 409 1550 2291 . 2371 1220 12473 13837 20601 Parts 3714 | 9 50 19 116 2 94 11 114 25 56 60 47 16 9 58 . 30 24 32 44 70 16 88 166 37 21 . 12 138 17 21 25 16 82 105 . 91 75 567 587 764 Haulers Intercepted 28 | . 2 . 5 . . . 3 . 4 1 . 2 . . . . . 2 . . . 1 2 . . . . 1 . . . . 1 . . . . . 4 . Recyclers Shooed 14 | . 2 . 1 1 . . 1 . 1 . . . . . . . . 1 . . . 1 2 . . . . . . . . . . . . . . 1 . 3 Parts Field Recycled . | . . . . . . . . . . . . . . . . . . . . . . . . . . . . . . . . . . . . . . . . . Retrieved Matter . | . . . . . . . . . . . . . . . . . . . . . . . . . . . . . . . . . . . . . . . . . Parts Self-Destructed 184 | . . . . . . . . . . . . . 1 15 . . 24 . . . . . . 25 30 . 38 . 14 21 . 16 . . . . . . . . Prevented 10 | . . . . . . . . . . . . . . . . . . . . . . . . . 4 . 6 . . . . . . . . . . . . . Kills | -11 -10 -10 -9 -9 -9 -8 -8 -8 -8 -7 -7 -7 -7 -7 -7 -7 -6 -6 -6 -6 -6 -6 -5 -5 -5 -5 -4 -4 -4 -4 -4 -3 -3 -3 -3 -2 -2 -2 -1 -1 ------- Run | Jun Mat Min Mat Min Exi Min Mat Gar Mat Fac Was Fac Low Low Zio Dee Pro Fac Ext Cet Arc Hub Fac Upp Upp Zhi Pro Fac Upp Upp War Pro Res Arm Lab Res Qua Sec Acc Com Combat Hostiles Destroyed 1128 | . 15 11 38 3 5 1 37 17 13 16 6 3 13 15 . 72 13 11 16 21 4 21 40 14 6 . 5 41 5 6 11 5 18 31 . 31 18 159 161 226 Melee 32 | . . . . . . . 9 . . 16 . 3 . . . 3 . . . . . . . . . . . . . . . . . . . . . . 1 . Guns 167 | . 14 6 30 3 5 1 14 9 7 . 6 . . . . . 13 . . 16 . 3 . . . . . . . . . . . . . . . . . 40 Cannons 433 | . . 4 4 . . . . . . . . . 1 8 . 7 . 11 13 1 4 17 39 14 6 . 5 33 5 6 11 5 17 31 . 9 13 53 59 57 AOE 351 | . 1 1 3 . . . 14 8 6 . . . 12 6 . 48 . . 3 4 . . 1 . . . . 8 . . . . 1 . . 15 . 74 58 88 Classes Destroyed 42 | 3 6 1 2 1 2 . 1 1 1 2 2 . 2 . . 3 . . . . . 2 . 1 3 . . . 1 . 3 . . . . . 3 1 . 1 Worker 21 | 1 . . 2 . . . 1 . 3 . . 1 . . . . . . . . . 1 1 . . . . . . . . . . . . . . 1 7 3 Builder 16 | . 1 . 2 . . . 1 . . . . . . . . . . 1 2 . . . 2 . . . . 2 . . . . 1 . . . . 2 2 . Tunneler 6 | 3 1 1 1 . . . . . . . . . . . . . . . . . . . . . . . . . . . . . . . . . . . . . Hauler 28 | . 2 . 5 . . . 3 . 4 1 . 2 . . . . . 2 . . . 1 2 . . . . 1 . . . . 1 . . . . . 4 . Recycler 32 | 1 1 . 4 . . . 3 . 2 8 . 1 . . . . . . . . . 2 1 . . . . 2 . . . . . . . . . 2 . 5 Carrier 7 | . . . . . . . . . . . . . . . . . . . . . . . . . . . . . . . . . . . . . . 1 2 4 Minesweeper 1 | . . . . . . . . . . . . . . . . . . . . . . . . . 1 . . . . . . . . . . . . . . . Mechanic 40 | . . . 1 . . . . . 1 . . 1 . . . . . . . . . . 2 . . . 1 1 . . . . 1 . . . . 5 14 13 Operator 13 | . 1 . 2 . . . 1 . 1 . . . . . . . . . . . . 1 1 . . . . 1 . . . . 1 1 . . 1 1 . 1 Drone 4 | . . . . . . . . . . . . . . . . . . . . . . . . . . . . . . . . . . . . . 1 . . 3 Turret 1 | . . . . . 1 . . . . . . . . . . . . . . . . . . . . . . . . . . . . . . . . . . . Watcher 37 | . 2 . 4 . . . 4 . . 1 . . . . . . . . 1 2 . 1 2 . . . . 4 . . . . 2 2 . 1 . 4 2 5 Swarmer 97 | . 9 6 14 . . . 9 2 2 . . . 1 . . . . 3 2 2 . . . 1 3 . . 10 . . . . . . . 8 . 4 . 21 Cutter 3 | . . . . . . . . 3 . . . . . . . . . . . . . . . . . . . . . . . . . . . . . . . . Saboteur 32 | . . . . . . . . . . . . . . . . . . . . . . . . . . . . . . . 1 . . . . . . 12 10 9 Grunt 399 | . 6 3 14 1 . . 17 10 9 6 . 3 7 4 . . 8 5 9 10 . 6 20 7 1 . 1 14 3 2 2 . 6 9 . 11 . 56 63 86 Brawler 46 | . . . . . . . 1 1 1 . . . 2 1 . . 3 . . . . 1 . . . . . . . . . . . 2 . 1 . 10 11 12 Duelist 44 | . . . . 1 . . . . . . . . 1 1 . . . . . . . . 4 . . . . 1 1 . . . 1 3 . . . 13 6 12 Protector 32 | . . . . . . . . . 1 . . . . . . . 1 . . . . . . . . . 1 . . . 2 . . 1 . . . 7 9 10 Researcher 2 | . . . . . . . . . . . . . . . . . . . . . . . . . . . . . 1 . . . . . . . . 1 . . Sentry 72 | . . . 10 . . . 10 1 . 4 . . 1 1 . . 1 1 5 . 4 4 3 2 . . . 1 1 1 . 1 3 2 . 3 . 8 1 4 Specialist 5 | . . . . . . . . . . . . . . . . . . . . . . 2 . . . . . . . . . . . . . . . 2 . 1 Hunter 63 | . . . . . . . . . . 3 . . . 1 . . . . . 1 . 1 7 . . . 3 5 . 2 3 4 2 5 . . 2 10 9 5 Programmer 105 | . . . . . . . . . . 3 . . . 1 . . . 2 . . . 3 6 . . . . 10 . 1 1 . 6 8 . 1 1 20 29 13 Heavy 5 | . . . . . . . . . . . . . . . . . . . . . . 1 . . . . . . . . . . . . . . . 2 1 1 Behemoth 5 | . . . . . . . . . . . . . . . . . . . . . . . . . 1 . . . . . . . . 1 . 1 . 1 . 1 Compactor 6 | . . . . . . . . . . . 6 . . . . . . . . . . . . . . . . . . . . . . . . . . . . . Cetus Guard 8 | . . . . . . . . . . . . . . . . . . . . 8 . . . . . . . . . . . . . . . . . . . . Quarantine Guard 11 | . . . . . . . . . . . . . . . . . . . . . . . . . . . . . . . . . . . . . 11 . . . S7 Guard 1 | . . . . . . . . . . . . . . . . . . . . . . . . . . . . . . . . . . . . . . 1 . . M Guard 2 | . . . . . . . . . . . . . . . . . . . . . . . . . . . . . . . . . . . . . . . . 2 Enhanced Q-Series 24 | . . . . . . . . . . . . . . . . . . . . . . . . . . . . . . . . . . . . . . . . 24 Lightning 3 | . . . . . . . . . . . . . . . . . . . . . . 3 . . . . . . . . . . . . . . . . . . Combat Programmer 2 | . . . . . . . . . . . . . . . . . . . . . . . . . . . . . . . . . . . . . . . . 2 Investigator 5 | . . . . . . . . . . . . . . . . . . . . . . . . . . . . . . . . . . . . . . . 2 3 Striker 31 | . . . . . . . . . . . . . . . . . . . . . . . . . . . . . . . 1 . . . . . . 4 13 13 Executioner 29 | . . . . . . . . . . . . . . . . . . . . . . . . . . . . . . . 1 . . . . 6 . 7 9 6 Alpha 7 3 | . . . . . . . . . . . . . . . . . . . . . . . . . . . . . . . . . . . . . 1 2 . . Fortress 1 | . . . . . . . . . . . . . . . . . . . . . . . . . . . . . . . . . . . . . 1 . . . Zionite 8 | . . . . . 8 . . . . . . . . . . . . . . . . . . . . . . . . . . . . . . . . . . . Z-Technician 3 | . . . . . . . . . . . . . . . . 3 . . . . . . . . . . . . . . . . . . . . . . . . Z-Light 8 | . . . . . . . . . . . . . . . . 8 . . . . . . . . . . . . . . . . . . . . . . . . Decomposer 2 | . . . . . . . . . . . . . . . . . . . . . . . . . 1 . . . 1 . . . . . . . . . . . Packrat 2 | . . . . . . . . . . . . . . 2 . . . . . . . . . . . . . . . . . . . . . . . . . . Tinkerer 1 | . . . . . . . . . . . . . 1 . . . . . . . . . . . . . . . . . . . . . . . . . . . Master Thief 1 | . . . . . . . . . . . . . . . . . . . . . . . . . 1 . . . . . . . . . . . . . . . Assembler 2 | . . . . . . . . . . . . . . . . 2 . . . . . . . . . . . . . . . . . . . . . . . . Assembled 53 | . . 2 . 1 4 . . . . . . . . . . 46 . . . . . . . . . . . . . . . . . . . . . . . . Golem 17 | . . . . . . . . . . . . . . . . 17 . . . . . . . . . . . . . . . . . . . . . . . . Thug 2 | . . . . . . . . . . . . . . 1 . . . . . . . . . 1 . . . . . . . . . . . . . . . . Savage 2 | . . . . . . . . . . . . . . 1 . . . . 1 . . . . . . . . . . . . . . . . . . . . . Butcher 3 | . . . . . . . . . . . . . . 3 . . . . . . . . . . . . . . . . . . . . . . . . . . Martyr 2 | . . . . . . . . . . . 2 . . . . . . . . . . . . . . . . . . . . . . . . . . . . . Fireman 3 | . . . . . . . . . . . . . . . . . . . . . . . . 3 . . . . . . . . . . . . . . . . Mutant 2 | . . . . . . . . . . . . . 1 1 . . . . . . . . . . . . . . . . . . . . . . . . . . Commander 1 | . . . . . . . . . . . . . . . . . . . . . . . . . . . . . . . . . . . . . 1 . . . Best Kill Streak 42 | 3 4 3 7 2 4 1 8 9 7 5 3 5 5 4 . 42 4 6 3 8 1 5 11 4 2 . 3 7 4 2 4 2 3 6 . 10 7 32 30 39 Combat Bots Only 40 | . 3 3 5 2 4 1 8 9 5 3 3 2 5 4 . 40 4 5 3 7 1 3 9 4 2 . 3 6 4 2 4 2 3 6 . 9 7 31 24 36 Max Kills in Single Turn 27 | 1 2 1 2 1 1 1 3 2 3 1 1 1 3 3 . 27 1 1 3 3 1 2 2 1 1 . 1 3 1 1 1 1 1 2 . 3 2 6 5 10 Gunslinging 1 | . . . 1 . . . . . . . . . . . . . . . . . . . . . . . . . . . . . . . . . . . . . Exploded 27 | . 1 1 1 . . . 3 2 2 . . . 3 3 . 27 . . 3 3 . . 1 . . . . 3 . . . . 1 . . 3 . 6 4 10 Melee 1 | . . . . . . . 1 . . 1 . 1 . . . 1 . . . . . . . . . . . . . . . . . . . . . . 1 . Uniques/NPCs Destroyed 7 | . . . . . 4 1 . . . . . . . . . 1 . . . . . . . . . . . . . . . . . . . . . . . 1 8R-AWN (-9/Exiles) EX-HEX (-9/Exiles) EX-BIN (-9/Exiles) EX-DEC (-9/Exiles) CL-ANK (-8/Mines) Z-Imprinter (-7/Deep Caves) MAIN.C Shell (-1/Command) Combat | -11 -10 -10 -9 -9 -9 -8 -8 -8 -8 -7 -7 -7 -7 -7 -7 -7 -6 -6 -6 -6 -6 -6 -5 -5 -5 -5 -4 -4 -4 -4 -4 -3 -3 -3 -3 -2 -2 -2 -1 -1 -------- Run | Jun Mat Min Mat Min Exi Min Mat Gar Mat Fac Was Fac Low Low Zio Dee Pro Fac Ext Cet Arc Hub Fac Upp Upp Zhi Pro Fac Upp Upp War Pro Res Arm Lab Res Qua Sec Acc Com Damage Taken 41235 | . 674 460 1348 232 823 701 1681 1191 520 1436 . 128 368 456 . 3377 731 707 481 2669 378 1769 2029 303 37 . 444 1247 68 59 430 274 557 638 . 851 1195 3250 3169 6554 Core 2546 | . 76 72 109 22 59 145 166 131 54 127 . 15 33 26 . 129 54 78 10 111 23 149 107 51 8 . 21 62 . . 26 9 17 36 . 64 48 75 180 253 Absorbed by Shields 17398 | . . . . . . . . . . 299 . . . . . . . 68 207 346 . . 259 112 13 . 111 231 25 64 337 264 601 669 . 887 1067 3078 3298 5462 Reduced by Siege Mode 2125 | . . . . . . . . . . . . . 9 10 . 227 30 46 44 59 21 117 166 12 . . 19 64 . 2 8 11 17 14 . 62 118 295 239 535 Redirected to Shielding 489 | . . . . . . . . . . . . . . . . 92 . . . 165 . . . . . . . . . . . . . . . . . . . 232 Regen/Repaired (Parts) 10778 | . 129 . 11 . . . . . 432 . 66 8 . . . . . . . . . . . . . . . 466 . . 115 . 224 . . . . 691 3826 4810 Core Remaining (%) 64 | 100 . 40 . . . 16 . . 36 . . . . . . . 45 . . . . 56 . . . . 81 . . . . 91 . . 100 . . 87 . 59 Volleys Fired 2662 | 16 66 34 113 9 102 20 70 67 50 1 24 1 23 92 . 82 11 30 56 58 16 78 132 97 29 . 31 89 14 13 60 21 58 60 21 59 60 198 210 491 Largest 4 | 2 2 2 2 2 2 2 2 2 2 2 2 1 2 2 . 2 1 2 2 2 2 2 2 2 2 . 2 3 3 3 3 3 4 4 1 3 4 4 4 4 Hottest 295 | 40 100 100 122 122 122 84 86 86 80 80 60 30 163 163 . 163 30 50 50 70 50 60 50 50 50 . 105 75 75 75 75 75 145 145 100 295 120 148 168 140 Shots Fired 5078 | 32 128 59 203 18 159 40 127 104 97 2 44 1 41 145 . 138 89 50 84 105 32 130 219 140 57 . 57 180 43 41 89 49 157 188 21 88 152 476 466 827 Gun 1364 | 32 125 31 149 18 119 36 114 97 93 2 44 1 . 16 . . 89 . . 79 . 14 . . . . . . . . . . . . . . . . . 305 Cannon 3282 | . . 19 40 . . . . . . . . . 22 124 . 104 . 49 80 22 32 116 219 140 57 . 55 174 43 41 89 49 157 188 21 77 146 412 380 426 Launcher 366 | . . . 5 . . . 13 7 4 . . . 19 5 . 34 . . 4 4 . . . . . . 2 6 . . . . . . . 11 6 64 86 96 Special 66 | . 3 9 9 . 40 4 . . . . . . . . . . . 1 . . . . . . . . . . . . . . . . . . . . . . Kinetic 2308 | 32 125 13 16 . 110 16 57 37 46 1 44 1 . 16 . . 89 . . 79 . 14 . . . . . . . . . . 13 39 4 15 82 402 363 694 Thermal 2198 | . 3 9 106 18 49 24 57 60 47 1 . . 22 124 . 50 . 49 80 22 32 116 219 140 57 . 55 174 43 41 89 49 144 149 17 62 64 . 6 20 Explosive 106 | . . . 5 . . . 13 7 4 . . . 19 5 . 34 . . 4 4 . . . . . . 2 6 . . . . . . . . . . 3 . Electromagnetic 465 | . . 37 76 . . . . . . . . . . . . 54 . . . . . . . . . . . . . . . . . . . 11 6 74 94 113 Robot Hit Streak 62 | 6 7 5 23 8 25 16 23 26 14 2 6 3 7 24 . 25 30 21 25 19 14 36 46 61 20 . 17 40 16 35 45 39 23 21 . 18 32 36 29 62 Robot Miss Streak 7 | 2 4 2 3 1 4 1 4 2 4 1 2 . 2 5 . 2 1 1 2 2 1 2 1 1 1 . 4 2 1 . 1 1 1 2 . 3 2 7 5 5 Penetration Max 2 | . . . . . 1 . . . . . . . . . . . . . . 2 . 2 . . . . . . . . . . . . . . . . . 1 Secondary Targets 14 | . 2 . 1 . 1 . 4 . 1 . . . . . . . . . . 5 . . . . . . . . . . . . . . . . . . . . Max Gunslinging Chain 1 | . 1 . 1 . 1 . 1 . 1 . . . . . . . . . . 1 . . . . . . . . . . . . . . . . . . . . Capacitor 16 | . . . . . . . . . . . . . . . . . . . . . . . . . . . . . . . . . . . . . . . . 16 Autonomous 78 | . . . . . . . . . . . . . . . . . 78 . . . . . . . . . . . . . . . . . . . . . . . Shots Hit Robots 3288 | 21 71 28 146 14 113 36 103 60 57 38 31 10 18 80 . 111 72 42 58 82 25 94 131 45 23 4 38 130 29 22 37 35 107 130 . 48 101 289 250 559 Core Hits 3688 | 6 32 19 81 4 37 9 72 28 40 16 9 5 30 39 . 157 32 18 32 43 8 42 67 20 7 . 18 82 13 9 15 9 36 59 . 105 59 643 689 1098 Critical Kills 62 | . . . . . 5 . 9 . . 16 8 3 . . . 1 2 . . 12 . 5 . . . . . . . . . . . . . . 1 . . . Critical Parts Destroyed 69 | . . . 1 . 3 . 7 . . 17 1 4 . 3 . 8 1 . . 22 . 2 . . . . . . . . . . . . . . . . . . Critical Strikes 230 | . . 1 5 . 13 3 22 4 1 36 17 7 . 3 . 9 3 . . 39 . 7 . . . . . . . . . . 1 2 . 1 3 14 16 23 Burn 19 | . . . 4 . 1 3 6 4 1 . . . . . . . . . . . . . . . . . . . . . . . . . . . . . . . Meltdown 1 | . . . . . . . . . . . . . . . . . . . . . . . . . . . . . . . . . . . . . 1 . . . Destroy 81 | . . . . . 11 . . . . . 17 1 . 3 . . 3 . . 39 . 7 . . . . . . . . . . . . . . . . . . Blast 59 | . . . . . . . . . . . . . . . . . . . . . . . . . . . . . . . . . 1 2 . 1 2 14 16 23 Corrupt 1 | . . 1 . . . . . . . . . . . . . . . . . . . . . . . . . . . . . . . . . . . . . . Smash 68 | . . . 1 . . . 16 . . 36 . 6 . . . 9 . . . . . . . . . . . . . . . . . . . . . . . . Sever 1 | . . . . . 1 . . . . . . . . . . . . . . . . . . . . . . . . . . . . . . . . . . . Melee Attacks 130 | . . . 4 . . . 22 . . 45 . 13 . . 12 30 . . . . . . . . . 4 . . . . . . . . . . . . . . Kinetic 79 | . . . . . . . 22 . . 44 . 13 . . . . . . . . . . . . . . . . . . . . . . . . . . . . Impact 45 | . . . 3 . . . . . . . . . . . 12 30 . . . . . . . . . . . . . . . . . . . . . . . . Slashing 1 | . . . 1 . . . . . . . . . . . . . . . . . . . . . . . . . . . . . . . . . . . . . Piercing . | . . . . . . . . . . . . . . . . . . . . . . . . . . . . . . . . . . . . . . . . . Sneak Attacks 19 | . . . 1 . . . 2 . . 8 . 4 . . . . . . . . . . . . . 4 . . . . . . . . . . . . . . Combat Hostiles . | . . . . . . . . . . . . . . . . . . . . . . . . . . . . . . . . . . . . . . . . . Follow-up Attacks . | . . . . . . . . . . . . . . . . . . . . . . . . . . . . . . . . . . . . . . . . . Damage Inflicted 219191 | 295 1135 594 3501 288 1657 484 4400 1758 1825 3559 621 1145 1878 2639 . 7874 2170 1814 3131 2636 1244 4286 6818 1658 1076 . 1721 7828 1191 993 2059 1522 5390 6246 . 5208 5073 30204 31849 61421 Guns 38033 | 295 927 209 2134 280 1397 462 1608 1021 1125 17 621 23 . 118 . . 2170 . . 1399 . 256 . . . . . . . . . . . . . . . . . 23971 Cannons 93320 | . . 265 403 . . . . . . . . . 362 2029 . 1643 . 1805 2662 867 1216 3997 6597 1658 1076 . 1657 6438 1191 993 2059 1506 5332 6246 . 1939 4539 12539 11805 12496 Explosions 79295 | . 173 70 815 . . . 1331 737 643 . . . 1516 479 . 4738 . . 445 370 . . 173 . . . 64 1332 . . . 16 58 . . 3269 534 17651 19986 24895 Melee 7535 | . . . 98 . . . 1407 . . 3504 . 1098 . . . 1428 . . . . . . . . . . . . . . . . . . . . . . . . Ramming 703 | . 35 50 25 8 . 3 54 . 57 38 . 24 . 13 . 65 . 9 24 . 28 33 48 . . . . 58 . . . . . . . . . 14 58 59 Kinetic 79421 | 295 927 89 166 . 1277 156 2175 461 613 3521 621 1121 . 118 . . 2170 . . 1399 . 256 . . . . . . . . . . 268 742 . 309 2612 12374 11503 36248 Thermal 77875 | . 173 70 1365 280 380 325 840 560 512 . . . 362 2029 . 600 . 1805 2662 867 1216 3997 6770 1658 1076 . 1657 6438 1191 993 2059 1522 5064 5504 . 2705 1948 6413 6223 8611 Explosive 12992 | . . . 619 . . . 1331 737 643 . . . 1516 479 . 4681 . . 445 370 . . . . . . 64 1332 . . . . 58 . . . . . 717 . Electromagnetic 46674 | . . 385 1228 . . . . . . . . . . . . 1100 . . . . . . . . . . . . . . . . . . . 2194 513 11403 13348 16503 Impact 1526 | . . . 98 . . . . . . . . . . . . 1428 . . . . . . . . . . . . . . . . . . . . . . . . Slashing . | . . . . . . . . . . . . . . . . . . . . . . . . . . . . . . . . . . . . . . . . . Piercing . | . . . . . . . . . . . . . . . . . . . . . . . . . . . . . . . . . . . . . . . . . Highest Corruption 18 | . 1 1 . . . . . 6 6 1 1 1 2 . . 1 . 1 3 . . 5 . . . . . 1 1 1 1 . . . . . 4 18 . . Average Corruption 2 | . 1 1 . . . . . 5 2 1 1 1 1 . . 1 . 1 1 . . 2 . . . . . 1 1 1 1 . . . . . 1 9 . . Corruption Purged 23 | . . . . . . . . . 6 . 1 1 2 . . 1 . 2 3 . . . . . . . . . . . . . . . . . . 7 . . Corruption Blocked 111 | . . . . . . . . . . . . . . . . . . . . . . . . . . . . . . . . . . . . 111 . . . . Effects 241 | . 6 5 . . . . . 34 5 1 . 1 5 . . 9 . 2 1 . . 8 . . . . . 9 18 14 . . . . . . 23 100 . . Message Errors 55 | . 2 1 . . . . . 8 1 1 . . 2 . . 2 . . . . . 2 . . . . . 1 7 3 . . . . . . 3 22 . . Matter Fused 60 | . 1 1 . . . . . 7 1 . . . 2 . . 4 . . 1 . . 2 . . . . . 3 4 4 . . . . . . 7 23 . . Heat Flow Errors 24 | . . . . . . . . 4 . . . 1 1 . . 1 . 1 . . . 2 . . . . . 2 . 1 . . . . . . 1 10 . . Energy Discharges 23 | . 1 1 . . . . . 6 1 . . . . . . 1 . 1 . . . . . . . . . 2 1 . . . . . . . 4 5 . . Parts Rejected 3 | . . . . . . . . 1 . . . . . . . . . . . . . . . . . . . . . . . . . . . . . 2 . . Parts Fused 3 | . . . . . . . . . . . . . . . . . . . . . . . . . . . . . . . . . . . . . . 3 . . Data Loss (minor) 24 | . . . . . . . . 1 1 . . . . . . 1 . . . . . 1 . . . . . 1 3 1 . . . . . . 4 11 . . Data Loss (major) 10 | . 1 . . . . . . . . . . . . . . . . . . . . 1 . . . . . . . 1 . . . . . . 1 6 . . Misfires 18 | . . 1 . . . . . 2 1 . . . . . . . . . . . . . . . . . . . 3 3 . . . . . . 3 5 . . Alerts 4 | . . 1 . . . . . 2 . . . . . . . . . . . . . . . . . . . . . 1 . . . . . . . . . . Weapon Failures 17 | . 1 . . . . . . 3 . . . . . . . . . . . . . . . . . . . . . . . . . . . . . 13 . . Overload Shots . | . . . . . . . . . . . . . . . . . . . . . . . . . . . . . . . . . . . . . . . . . Overflow Damage 9318 | . 168 17 117 . 41 . 757 41 14 1563 . 354 95 178 . 774 . 111 125 . 15 149 316 101 146 . 127 427 24 15 109 36 335 192 . 145 63 744 1240 779 Projectiles 4017 | . . 4 . . 41 . . . . . . . 8 173 . 23 . 111 105 . 15 146 316 101 146 . 120 377 24 15 109 36 335 192 . 3 63 430 676 448 Explosions 2029 | . 168 13 19 . . . 101 41 14 . . . 87 . . 170 . . 13 . . . . . . . 7 50 . . . . . . . 142 . 314 559 331 Melee 3272 | . . . 98 . . . 656 . . 1563 . 354 . 5 . 581 . . 7 . . 3 . . . . . . . . . . . . . . . . 5 . Knockbacks 207 | . . . . . . . . . . . . 2 . . . 14 . . . . . . . . . . . 1 . . . . 3 4 . 1 4 46 60 72 Impact 16 | . . . . . . . . . . . . 2 . . . 12 . . . . . . . . . . . 1 . . . . . . . . . . 1 . Kinetic 176 | . . . . . . . . . . . . . . . . . . . . . . . . . . . . . . . . . 3 4 . 1 4 45 51 68 Secondary 15 | . . . . . . . . . . . . . . . . 2 . . . . . . . . . . . . . . . . . . . . . 1 8 4 Self-Inflicted Damage 1205 | . 71 37 9 . . . 145 204 3 . . . . 59 . 330 . . . . . . . . . . . 17 . . . . . . . 123 53 125 . 29 Shots 63 | . 1 1 2 . . . 3 6 1 . . . . 2 . 8 . . . . . . . . . . . 1 . . . . . . . 9 10 10 . 9 Rammed 56 | . 5 8 2 1 . 2 4 . 6 1 . 2 . 1 . 9 . . . . 1 1 3 . . . . 3 . . . . . . . . . 1 2 4 Targets Rammed 66 | . 6 8 3 1 . 2 5 . 6 2 . 3 . 1 . 10 . 2 2 . 1 1 3 . . . . 3 . . . . . . . . . 1 2 4 Kicked 4 | . . . . . . . . . . . . . . . . . . 2 2 . . . . . . . . . . . . . . . . . . . . . Crushed 6 | . 1 . 1 . . . 1 . . 1 . 1 . . . 1 . . . . . . . . . . . . . . . . . . . . . . . . Highest Temperature 420 | . 60 172 321 101 238 . 173 238 122 18 120 179 420 194 . 200 5 212 . 197 . 247 32 48 . . 14 225 . 206 . . 100 128 . 244 230 258 340 125 Average Temperature 58 | . 27 55 62 52 35 . 51 63 36 8 41 53 80 56 . 78 3 81 . 58 . 75 7 18 . . 10 106 . 126 . . 52 46 . 111 85 72 68 33 Received Heat Transfer 7663 | . 150 150 366 36 . . 702 513 270 438 . 36 33 54 . 593 312 179 117 731 54 330 722 180 . . 20 276 12 16 50 16 145 63 . 72 30 367 241 389 Effects 6 | . . . 3 . . . . . . . . . . . . . . 1 . . . . . . . . . . . . . . . . . . . 1 1 . Shutdowns 1 | . . . . . . . . . . . . . . . . . . . . . . . . . . . . . . . . . . . . . . . 1 . Energy Bleed 1 | . . . . . . . . . . . . . . . . . . 1 . . . . . . . . . . . . . . . . . . . . . . Interference 4 | . . . 3 . . . . . . . . . . . . . . . . . . . . . . . . . . . . . . . . . . 1 . . Siege Activations 220 | . . . . . . . . . . . . . 4 10 . 8 4 6 10 5 4 13 16 8 2 . 2 11 2 4 2 3 9 11 . 6 11 26 15 28 Total Turns 6116 | . . . . . . . . . . . . . 61 258 . 194 50 82 95 76 218 163 213 100 7 . 24 201 15 34 36 43 96 110 . 40 106 711 901 2282 Longest Duration 1398 | . . . . . . . . . . . . . 32 86 . 43 26 30 21 29 184 42 53 40 6 . 19 42 9 14 25 18 32 22 . 12 18 260 357 1398 Robots Corrupted 142 | . . . 1 . . . . . . . . . . . . 8 . . . . . . . . . . . . . . . . . . . 7 3 33 44 46 Combat Hostiles 134 | . . . . . . . . . . . . . . . . 8 . . . . . . . . . . . . . . . . . . . 7 3 32 43 41 Parts Fried 485 | . . . 17 . . . . . . . . . . . . . . . . . . . . . . . . . . . . . . . . 25 10 109 143 181 Impact Corruptions 24 | . . . 2 . . . . . . . . . . 1 . 17 . . 1 . . 1 . . . . . . . . . . . . . . . . 2 . Robots Melted 5 | . . . 1 . . . . . . . . . . 1 . . . . . . . 1 . . . . . . . . . . . . . . 1 . 1 . Combat Hostiles 4 | . . . 1 . . . . . . . . . . 1 . . . . . . . 1 . . . . . . . . . . . . . . 1 . . . Parts Melted 82 | . . . 7 . 9 . 2 5 . . . . . 4 . 2 . . 3 . . 3 2 1 . . . 6 1 1 . 1 4 4 . 2 5 3 8 9 Heat Transferred 56407 | . 100 100 3138 518 1201 234 1998 1332 1036 . . . 522 2934 . 818 . 1025 1550 500 650 1916 3650 1050 625 . 771 3400 700 525 974 930 2675 2797 . 2145 1116 4800 4250 6427 Parts Sabotaged 2 | . . . . . . . . . . . . . . . . . . . . . . . . . . . . . . . . . . . . . . . 2 . Parts Stolen 4 | . . . . . . . . . . . . . . 3 . . . . . . . . . . 1 . . . . . . . . . . . . . . . Parts Stripped . | . . . . . . . . . . . . . . . . . . . . . . . . . . . . . . . . . . . . . . . . . Power Chain Reactions 141 | . . 2 5 . . . . . . . . . . . . 1 . . . . . . . . . . . . . . . . . . . 6 1 37 37 52 Missiles Intercepted 7 | . . . . . . . . . . . . . . . . . . . . . . . . . . . . . . . . . . . . . . . . 7 Alert | -11 -10 -10 -9 -9 -9 -8 -8 -8 -8 -7 -7 -7 -7 -7 -7 -7 -6 -6 -6 -6 -6 -6 -5 -5 -5 -5 -4 -4 -4 -4 -4 -3 -3 -3 -3 -2 -2 -2 -1 -1 ------- Run | Jun Mat Min Mat Min Exi Min Mat Gar Mat Fac Was Fac Low Low Zio Dee Pro Fac Ext Cet Arc Hub Fac Upp Upp Zhi Pro Fac Upp Upp War Pro Res Arm Lab Res Qua Sec Acc Com Peak Influence 10255 | 25 410 198 790 347 . . 780 1103 741 419 84 479 . . . . . 165 251 347 267 321 949 . . . . 853 . . . . 258 781 . 419 626 4583 7379 10255 Initial 4722 | . 16 85 24 307 . . . 398 537 217 84 . . . . . . . 30 126 138 23 116 . . . . 452 . . . . . 135 . . 204 253 2749 4722 Average 2225 | 9 193 75 351 328 . . 305 795 583 267 43 135 . . . . . 51 133 228 134 161 333 . . . . 575 . . . . 121 369 . 265 487 2394 5904 8626 Maximum Alert Level 5 | . 2 . 3 1 . . 3 4 3 2 . 2 . . . . . . 1 1 1 1 3 . . . . 3 . . . . 1 3 . 2 2 5 5 5 Low Security (%) 29 | 100 45 100 29 . . 100 41 . . 14 100 68 . . . . . 100 85 28 82 59 33 . . . . . . . . . 85 26 . 22 . . . 6 Level 1 19 | . 53 . 33 100 . . 13 5 . 84 . 17 . . . . . . 14 71 17 40 45 . . . . 7 . . . . 14 35 . 63 11 11 . . Level 2 16 | . 1 . 28 . . . 40 17 94 . . 13 . . . . . . . . . . 9 . . . . 69 . . . . . 22 . 14 88 6 . . Level 3 5 | . . . 9 . . . 3 67 5 . . . . . . . . . . . . . 11 . . . . 22 . . . . . 16 . . . 3 . . Level 4 1 | . . . . . . . . 9 . . . . . . . . . . . . . . . . . . . . . . . . . . . . . 17 . . Level 5 1 | . . . . . . . . . . . . . . . . . . . . . . . . . . . . . . . . . . . . . . 6 10 3 High Security 25 | . . . . . . . . . . . . . . . . . . . . . . . . . . . . . . . . . . . . . . 53 89 90 Max Security . | . . . . . . . . . . . . . . . . . . . . . . . . . . . . . . . . . . . . . . . . . Sterilizations 2 | . . . . . . . . . . . . . . . . . . . . . . . . . . . . . . . . . . . . . . 1 1 . Squads Dispatched 189 | . 4 . 6 . . . 7 . 2 6 . 3 . . . . 1 4 2 . . 12 10 . . . . 9 . . . . 2 8 . 2 2 33 38 38 Investigation 19 | . 3 . 1 . . . 2 . . 2 . . . . . . . 1 1 . . . 3 . . . . 2 . . . . . 1 . 1 . 1 . 1 Extermination 29 | . . . . . . . . . . 3 . 2 . . . . . 3 . . . 3 3 . . . . 5 . . . . 2 4 . . . 3 1 . Reinforcement 28 | . 1 . 4 . . . 2 . 1 1 . 1 . . . . . . 1 . . 6 1 . . . . 1 . . . . . 2 . 1 2 2 1 1 Assault 107 | . . . 1 . . . . . 1 . . . . . . . 1 . . . . . 3 . . . . 1 . . . . . 1 . . . 27 36 36 Garrison 6 | . . . . . . . 3 . . . . . . . . . . . . . . 3 . . . . . . . . . . . . . . . . . . Intercept . | . . . . . . . . . . . . . . . . . . . . . . . . . . . . . . . . . . . . . . . . . Searches Triggered 2 | . . . . . . . . . . . . . . . . . . . . . . . . . . . . 2 . . . . . . . . . . . . Construction Impeded 2 | . . . . . . . 1 . . . . . . . . . . . . . . 1 . . . . . . . . . . . . . . . . . . Haulers Reinforced 3 | . . . . . . . . . . 1 . . . . . . . . . . . . . . . . . 1 . . . . . . . . . . 1 . Active Scanning Responses . | . . . . . . . . . . . . . . . . . . . . . . . . . . . . . . . . . . . . . . . . . Cargo Convoy Interrupts . | . . . . . . . . . . . . . . . . . . . . . . . . . . . . . . . . . . . . . . . . . Stealth | -11 -10 -10 -9 -9 -9 -8 -8 -8 -8 -7 -7 -7 -7 -7 -7 -7 -6 -6 -6 -6 -6 -6 -5 -5 -5 -5 -4 -4 -4 -4 -4 -3 -3 -3 -3 -2 -2 -2 -1 -1 --------- Run | Jun Mat Min Mat Min Exi Min Mat Gar Mat Fac Was Fac Low Low Zio Dee Pro Fac Ext Cet Arc Hub Fac Upp Upp Zhi Pro Fac Upp Upp War Pro Res Arm Lab Res Qua Sec Acc Com Distress Signals 38 | . . . 5 . . . 2 . 3 . . 1 . . . . . . . 2 . 4 1 . . . . 3 . . . . 1 1 . 6 1 1 . 7 Communications Jammed 435 | . . . . . . . . . . . . . . . . . 8 9 . . . . . . . . 6 23 . . 193 . . . . . 9 84 56 47 Distress Signals 411 | . . . . . . . . . . . . . . . . . 8 9 . . . . . . . . 4 18 . . 193 . . . . . . 82 54 43 Times Spotted 1526 | . 24 16 55 3 28 1 53 20 27 19 5 14 10 15 . 73 14 14 25 26 8 34 49 12 12 . 23 50 4 6 67 5 21 41 . 32 21 189 223 287 Peak Tracking Total 37 | . 4 3 6 2 9 1 8 11 7 4 1 4 5 4 . 37 5 5 4 8 1 4 8 3 2 . 6 5 1 2 13 2 4 6 . 9 5 19 18 19 Tactical Retreats 55 | . 1 . 4 . 13 . 3 1 . 1 . 1 . . . 6 . . 1 4 . 1 2 . 1 . . . . . . . . 1 . . 1 4 5 5 Traps | -11 -10 -10 -9 -9 -9 -8 -8 -8 -8 -7 -7 -7 -7 -7 -7 -7 -6 -6 -6 -6 -6 -6 -5 -5 -5 -5 -4 -4 -4 -4 -4 -3 -3 -3 -3 -2 -2 -2 -1 -1 ------- Run | Jun Mat Min Mat Min Exi Min Mat Gar Mat Fac Was Fac Low Low Zio Dee Pro Fac Ext Cet Arc Hub Fac Upp Upp Zhi Pro Fac Upp Upp War Pro Res Arm Lab Res Qua Sec Acc Com Traps Triggered 29 | . 1 . . . . . 2 7 . 1 . 1 . . . . . 2 2 . . . 1 . . . . . . . . . 2 1 . . 1 . 8 . Indirectly . | . . . . . . . . . . . . . . . . . . . . . . . . . . . . . . . . . . . . . . . . . Trap Hack Attempts . | . . . . . . . . . . . . . . . . . . . . . . . . . . . . . . . . . . . . . . . . . Triggered . | . . . . . . . . . . . . . . . . . . . . . . . . . . . . . . . . . . . . . . . . . Disarmed . | . . . . . . . . . . . . . . . . . . . . . . . . . . . . . . . . . . . . . . . . . Reprogrammed . | . . . . . . . . . . . . . . . . . . . . . . . . . . . . . . . . . . . . . . . . . Reused . | . . . . . . . . . . . . . . . . . . . . . . . . . . . . . . . . . . . . . . . . . Traps Reconfigurated 8 | . . . . . . . . . . . . 8 . . . . . . . . . . . . . . . . . . . . . . . . . . . . Traps Extracted . | . . . . . . . . . . . . . . . . . . . . . . . . . . . . . . . . . . . . . . . . . Installed . | . . . . . . . . . . . . . . . . . . . . . . . . . . . . . . . . . . . . . . . . . Triggered 26 | . . . . . . . . . . . . . . . . . . . . . . . . . 1 . 2 . . . 11 . . . . . . . . 12 Exploded 3 | . . . . . 3 . . . . . . . . . . . . . . . . . . . . . . . . . . . . . . . . . . . Machines | -11 -10 -10 -9 -9 -9 -8 -8 -8 -8 -7 -7 -7 -7 -7 -7 -7 -6 -6 -6 -6 -6 -6 -5 -5 -5 -5 -4 -4 -4 -4 -4 -3 -3 -3 -3 -2 -2 -2 -1 -1 ---------- Run | Jun Mat Min Mat Min Exi Min Mat Gar Mat Fac Was Fac Low Low Zio Dee Pro Fac Ext Cet Arc Hub Fac Upp Upp Zhi Pro Fac Upp Upp War Pro Res Arm Lab Res Qua Sec Acc Com Machines Disabled 112 | . 5 1 1 . 13 . 4 4 2 . . . 2 . . 5 . 1 3 . 1 . 6 . 1 . . 3 . . 1 1 2 7 1 2 6 22 8 10 Max in Single Turn 5 | . 5 1 1 . 2 . 1 1 2 . . . 1 . . 1 . 1 . . 1 . 1 . 1 . . 1 . . 1 1 2 1 1 1 1 4 1 1 Garrison Access 9 | . . . . . . . . . . . . 2 . . . . . . . . . 1 2 . . . . . . . . . 1 . . 3 . . . . Garrison Relay 3 | . . . . . . . . 3 . . . . . . . . . . . . . . . . . . . . . . . . . . . . . . . . Network Hub 2 | . . . . . . . . . . . . . . . . . . . . . . 2 . . . . . . . . . . . . . . . . . . Energy Cycler 2 | . . . . . . . . . . . . . . . . . . . 1 . . . . . . . . . . . . . . . . . . . 1 . Machines Repaired . | . . . . . . . . . . . . . . . . . . . . . . . . . . . . . . . . . . . . . . . . . Machines Sabotaged . | . . . . . . . . . . . . . . . . . . . . . . . . . . . . . . . . . . . . . . . . . Overloaded Fab Kills . | . . . . . . . . . . . . . . . . . . . . . . . . . . . . . . . . . . . . . . . . . Hacking | -11 -10 -10 -9 -9 -9 -8 -8 -8 -8 -7 -7 -7 -7 -7 -7 -7 -6 -6 -6 -6 -6 -6 -5 -5 -5 -5 -4 -4 -4 -4 -4 -3 -3 -3 -3 -2 -2 -2 -1 -1 --------- Run | Jun Mat Min Mat Min Exi Min Mat Gar Mat Fac Was Fac Low Low Zio Dee Pro Fac Ext Cet Arc Hub Fac Upp Upp Zhi Pro Fac Upp Upp War Pro Res Arm Lab Res Qua Sec Acc Com Machines Accessed 143 | . 8 . 9 . 2 . 11 5 5 11 . 9 2 1 . . . 5 6 . . 6 8 . 1 4 . 9 1 . . . 9 8 1 2 11 8 . 1 Terminals 81 | . 6 . 8 . . . 7 5 3 5 . 2 . . . . . 2 6 . . 4 5 . . . . 5 . . . . 5 3 . . 9 5 . 1 Fabricators 13 | . . . . . . . . . . 2 . 3 . . . . . . . . . . 2 . . . . 1 . . . . 1 4 . . . . . . Repair Stations 11 | . 1 . 1 . . . . . 1 2 . 2 . . . . . 1 . . . . . . . . . 1 . . . . 1 1 . . . . . . Recycling Units 7 | . 1 . . . . . 2 . . 2 . . . . . . . 2 . . . . . . . . . . . . . . . . . . . . . . Scanalyzers 7 | . . . . . . . 1 . 1 . . . . . . . . . . . . . . . . . . 1 . . . . . . . . 1 3 . . Garrison Access 12 | . . . . . . . 1 . . . . 2 . . . . . . . . . 2 1 . . . . 1 . . . . 2 . . 2 1 . . . Total Hacks 496 | . 20 . 23 . 2 . 39 14 20 26 . 20 2 1 . . . 10 20 . . 15 47 . 1 16 . 48 1 . . . 40 42 1 9 50 22 . 7 Successful 211 | . 11 . 6 . 2 . 18 4 13 12 . 9 2 1 . . . 2 8 . . 4 22 . 1 16 . 16 1 . . . 18 24 1 1 12 6 . 1 Failed 285 | . 9 . 17 . . . 21 10 7 14 . 11 . . . . . 8 12 . . 11 25 . . . . 32 . . . . 22 18 . 8 38 16 . 6 Catastrophic 62 | . 2 . 1 . . . . 2 3 2 . 4 . . . . . 2 3 . . 3 8 . . . . 8 . . . . 4 2 . 2 10 3 . 3 Database Lockouts . | . . . . . . . . . . . . . . . . . . . . . . . . . . . . . . . . . . . . . . . . . Manual 190 | . 14 . 3 . 5 . 20 5 3 7 . 10 . . . . . 3 8 . . 5 22 . . . . 16 . . . . 16 16 . . 19 12 . 6 Terminals 289 | . 16 . 21 . . . 27 14 7 13 . 6 . . . . . 4 20 . . 9 28 . . . . 19 . . . . 23 16 . . 43 16 . 7 Fabricators 61 | . . . . . . . . . . 4 . 7 . . . . . . . . . . 13 . . . . 9 . . . . 3 25 . . . . . . Repair Stations 44 | . 3 . 2 . . . . . 8 6 . 4 . . . . . 2 . . . . . . . . . 9 . . . . 9 1 . . . . . . Recycling Units 15 | . 1 . . . . . 7 . . 3 . . . . . . . 4 . . . . . . . . . . . . . . . . . . . . . . Scanalyzers 26 | . . . . . . . 4 . 5 . . . . . . . . . . . . . . . . . . 6 . . . . . . . . 5 6 . . Garrison Access 37 | . . . . . . . 1 . . . . 3 . . . . . . . . . 6 6 . . . . 5 . . . . 5 . . 9 2 . . . Terminal Hacks 97 | . 5 . 4 . 2 . 6 3 3 7 . 2 2 1 . . . 1 7 . . 2 7 . 1 16 . 4 1 . . . 6 4 1 . 8 3 . 1 Record 8 | . . . . . 1 . . . . . . . . . . . . . . . . . . . . 4 . . . . . . . . 1 . 1 . . 1 Part Schematic 5 | . . . . . . . . . . . . . . . . . . . . . . . . . . 4 . . . . . . 1 . . . . . . . Robot Analysis 8 | . 2 . . . . . . . 1 . . . . . . . . . . . . . . . . 4 . . . . . . 1 . . . . . . . Prototype ID Bank 5 | . . . . . . . . . . . . . . . . . . . . . . . . . . 4 . . . . . . . . . . 1 . . . Open Door 10 | . . . . . . . . 1 . . . . 2 1 . . . . 3 . . . . . 1 . . . 1 . . . . . . . 1 . . . Branch Access Points 4 | . . . . . . . 1 . . . . 1 . . . . . . . . . . 1 . . . . 1 . . . . . . . . . . . . Terminal Index 5 | . . . . . . . . . . 1 . . . . . . . 1 . . . . 1 . . . . . . . . . 1 . . . 1 . . . Scanalyzer Index 1 | . . . . . . . . . . . . . . . . . . . . . . . . . . . . . . . . . . . . . . 1 . . Garrison Index 1 | . . . . . . . . . . . . . . . . . . . . . . . 1 . . . . . . . . . . . . . . . . . Alert Level 7 | . . . . . . . 1 . 1 1 . . . . . . . . 1 . . . 1 . . . . 1 . . . . 1 . . . . . . . Unreport Threat 6 | . . . . . . . 2 . 1 1 . . . . . . . . . . . . . . . . . 2 . . . . . . . . . . . . Locate Traps 11 | . 1 . 1 . . . . . . 1 . . . . . . . . 2 . . 1 . . . . . . . . . . . 2 . . 2 1 . . Maintenance Status 1 | . . . . . . . . . . . . . . . . . . . . . . . . . . . . . . . . . 1 . . . . . . . Hauler Manifests 4 | . . . 1 . . . . . . 1 . . . . . . . . . . . . 1 . . . . . . . . . . 1 . . . . . . Zone Layout 18 | . 2 . 2 . . . 2 . . 2 . 1 . . . . . . 1 . . 1 2 . . . . . . . . . 1 1 . . 2 1 . . Garrison Registry 1 | . . . . . . . . 1 . . . . . . . . . . . . . . . . . . . . . . . . . . . . . . . . Patrol Navigation 1 | . . . . . . . . 1 . . . . . . . . . . . . . . . . . . . . . . . . . . . . . . . . EX-Prototype ID Bank 1 | . . . . . 1 . . . . . . . . . . . . . . . . . . . . . . . . . . . . . . . . . . . Fabricator Hacks 25 | . . . . . . . . . . 2 . 1 . . . . . . . . . . 4 . . . . 1 . . . . 3 14 . . . . . . Network Status 6 | . . . . . . . . . . 1 . 1 . . . . . . . . . . 1 . . . . 1 . . . . 1 1 . . . . . . Load Schematic 11 | . . . . . . . . . . 1 . . . . . . . . . . . . 2 . . . . . . . . . 1 7 . . . . . . Build 8 | . . . . . . . . . . . . . . . . . . . . . . . 1 . . . . . . . . . 1 6 . . . . . . Repair Station Hacks 19 | . 2 . 2 . . . . . 6 2 . 1 . . . . . . . . . . . . . . . 3 . . . . 3 . . . . . . . Scan Component 12 | . 1 . 1 . . . . . 3 2 . 1 . . . . . . . . . . . . . . . 2 . . . . 2 . . . . . . . Repair 7 | . 1 . 1 . . . . . 3 . . . . . . . . . . . . . . . . . . 1 . . . . 1 . . . . . . . Recycling Unit Hacks 2 | . . . . . . . 1 . . 1 . . . . . . . . . . . . . . . . . . . . . . . . . . . . . . Retrieve Components 2 | . . . . . . . 1 . . 1 . . . . . . . . . . . . . . . . . . . . . . . . . . . . . . Scanalyzer 11 | . . . . . . . 3 . 3 . . . . . . . . . . . . . . . . . . 2 . . . . . . . . 1 2 . . Insert Component 6 | . . . . . . . 1 . 1 . . . . . . . . . . . . . . . . . . 1 . . . . . . . . 1 2 . . Analyze 5 | . . . . . . . 2 . 2 . . . . . . . . . . . . . . . . . . 1 . . . . . . . . . . . . Garrison Access Hacks 7 | . . . . . . . 1 . . . . 2 . . . . . . . . . 1 1 . . . . . . . . . 1 . . 1 . . . . Unlock Access 1 | . . . . . . . 1 . . . . . . . . . . . . . . . . . . . . . . . . . . . . . . . . . Seal Access 6 | . . . . . . . . . . . . 2 . . . . . . . . . 1 1 . . . . . . . . . 1 . . 1 . . . . Unauthorized Hacks 50 | . 4 . . . . . 7 1 1 . . 3 . . . . . 1 1 . . 1 10 . . . . 6 . . . . 5 6 . . 3 1 . . Terminals 27 | . 3 . . . . . 5 1 . . . 1 . . . . . 1 1 . . 1 4 . . . . 2 . . . . 3 2 . . 2 1 . . Track 2 | . . . . . . . . . . . . . . . . . . . . . . . . . . . . . . . . . 1 1 . . . . . . Assimilate 2 | . 1 . . . . . . . . . . . . . . . . . . . . . . . . . . 1 . . . . . . . . . . . . Botnet 13 | . 1 . . . . . 2 1 . . . 1 . . . . . . . . . 1 2 . . . . . . . . . 1 1 . . 2 1 . . Disrupt 1 | . . . . . . . 1 . . . . . . . . . . . . . . . . . . . . . . . . . . . . . . . . . Operators 9 | . 1 . . . . . 2 . . . . . . . . . . 1 1 . . . 2 . . . . 1 . . . . 1 . . . . . . . Fabricators 15 | . . . . . . . . . . . . 2 . . . . . . . . . . 5 . . . . 4 . . . . . 4 . . . . . . Report 2 | . . . . . . . . . . . . . . . . . . . . . . . 1 . . . . 1 . . . . . . . . . . . . Prioritize 4 | . . . . . . . . . . . . . . . . . . . . . . . 1 . . . . 1 . . . . . 2 . . . . . . Liberate 4 | . . . . . . . . . . . . 1 . . . . . . . . . . 1 . . . . 1 . . . . . 1 . . . . . . Haulers 3 | . . . . . . . . . . . . 1 . . . . . . . . . . 1 . . . . 1 . . . . . . . . . . . . Recompile 2 | . . . . . . . . . . . . . . . . . . . . . . . 1 . . . . . . . . . . 1 . . . . . . Repair Stations 2 | . . . . . . . . . 1 . . . . . . . . . . . . . . . . . . . . . . . 1 . . . . . . . Mechanics 2 | . . . . . . . . . 1 . . . . . . . . . . . . . . . . . . . . . . . 1 . . . . . . . Recycling Units 3 | . 1 . . . . . 2 . . . . . . . . . . . . . . . . . . . . . . . . . . . . . . . . . Reject 1 | . . . . . . . 1 . . . . . . . . . . . . . . . . . . . . . . . . . . . . . . . . . Tunnel 2 | . 1 . . . . . 1 . . . . . . . . . . . . . . . . . . . . . . . . . . . . . . . . . Scanalyzers 1 | . . . . . . . . . . . . . . . . . . . . . . . . . . . . . . . . . . . . . 1 . . . Researchers 1 | . . . . . . . . . . . . . . . . . . . . . . . . . . . . . . . . . . . . . 1 . . . Garrison Access 2 | . . . . . . . . . . . . . . . . . . . . . . . 1 . . . . . . . . . 1 . . . . . . . Watchers 2 | . . . . . . . . . . . . . . . . . . . . . . . 1 . . . . . . . . . 1 . . . . . . . Data Cores Recovered 5 | . . . . . . . . . . . . 1 . . . . . . . . . 1 . . . . . 1 . . . . 1 . . . 1 . . . Used 3 | . . . . . . . . . . . . . . . . . . . . . . . . . . . . 1 . . . . 1 . . . 1 . . . Hacking Detections 118 | . 6 . 9 . . . 10 4 5 11 . 8 . . . . . 5 4 . . 6 7 . . . . 9 . . . . 9 7 . 2 9 6 . 1 Full Trace Events 16 | . 2 . 2 . . . . 1 . 2 . . . . . . . 1 1 . . . 2 . . . . 2 . . . . . . . 1 . 1 . 1 Feedback Events 2 | . 1 . . . . . . . . . . . . . . . . . . . . . . . . . . . . . . . . . . . . . . 1 Corruption 2 | . 1 . . . . . . . . . . . . . . . . . . . . . . . . . . . . . . . . . . . . . . 1 Feedback Blocked . | . . . . . . . . . . . . . . . . . . . . . . . . . . . . . . . . . . . . . . . . . Robot Schematics Acquired 1 | . . . . . . . . . . . . . . . . . . . . . . . . . . . . . . . . . . . . . . 1 . . Robots Built . | . . . . . . . . . . . . . . . . . . . . . . . . . . . . . . . . . . . . . . . . . Authchips . | . . . . . . . . . . . . . . . . . . . . . . . . . . . . . . . . . . . . . . . . . Time . | . . . . . . . . . . . . . . . . . . . . . . . . . . . . . . . . . . . . . . . . . Total Robot Build Rating . | . . . . . . . . . . . . . . . . . . . . . . . . . . . . . . . . . . . . . . . . . Part Schematics Acquired 14 | . . . . . . . 1 . 1 . . . . . . . . . . . . . . . . 4 . 1 . . . . 1 . . . 5 1 . . Parts Built 9 | . . . . . . . . . . . . . . . . . . . . . . . 1 . . . . . . . . . 2 6 . . . . . . Authchips 7 | . . . . . . . . . . . . . . . . . . . . . . . . . . . . . . . . . 1 6 . . . . . . Time 475 | . . . . . . . . . . . . . . . . . . . . . . . 29 . . . . . . . . . 64 382 . . . . . . Total Part Build Rating 72 | . . . . . . . . . . . . . . . . . . . . . . . 7 . . . . . . . . . 16 49 . . . . . . Parts Repaired 7 | . 1 . 1 . . . . . 3 . . . . . . . . . . . . . . . . . . 1 . . . . 1 . . . . . . . Time 262 | . 26 . 36 . . . . . 124 . . . . . . . . . . . . . . . . . . 54 . . . . 22 . . . . . . . Parts Recycled . | . . . . . . . . . . . . . . . . . . . . . . . . . . . . . . . . . . . . . . . . . Recycled Matter . | . . . . . . . . . . . . . . . . . . . . . . . . . . . . . . . . . . . . . . . . . Retrieved Matter . | . . . . . . . . . . . . . . . . . . . . . . . . . . . . . . . . . . . . . . . . . Retrieved Components 17 | . . . . . . . 7 . . 10 . . . . . . . . . . . . . . . . . . . . . . . . . . . . . . Parts Scanalyzed 3 | . . . . . . . 1 . 1 . . . . . . . . . . . . . . . . . . 1 . . . . . . . . . . . . Part Schematics Acquired 3 | . . . . . . . 1 . 1 . . . . . . . . . . . . . . . . . . 1 . . . . . . . . . . . . Parts Damaged . | . . . . . . . . . . . . . . . . . . . . . . . . . . . . . . . . . . . . . . . . . Bothacking | -11 -10 -10 -9 -9 -9 -8 -8 -8 -8 -7 -7 -7 -7 -7 -7 -7 -6 -6 -6 -6 -6 -6 -5 -5 -5 -5 -4 -4 -4 -4 -4 -3 -3 -3 -3 -2 -2 -2 -1 -1 ------------ Run | Jun Mat Min Mat Min Exi Min Mat Gar Mat Fac Was Fac Low Low Zio Dee Pro Fac Ext Cet Arc Hub Fac Upp Upp Zhi Pro Fac Upp Upp War Pro Res Arm Lab Res Qua Sec Acc Com Used RIF Installer . | . . . . . . . . . . . . . . . . . . . . . . . . . . . . . . . . . . . . . . . . . Robots Hacked 6 | . . . . . . . . . . 1 . . . . . . . 1 . . . . . . . 4 . . . . . . . . . . . . . . Non-combat 2 | . . . . . . . . . . 1 . . . . . . . 1 . . . . . . . . . . . . . . . . . . . . . . Combat 4 | . . . . . . . . . . . . . . . . . . . . . . . . . . 4 . . . . . . . . . . . . . . Robot Hacks Applied 6 | . . . . . . . . . . 1 . . . . . . . 1 . . . . . . . 4 . . . . . . . . . . . . . . parse_system 4 | . . . . . . . . . . . . . . . . . . . . . . . . . . 4 . . . . . . . . . . . . . . find_chute 2 | . . . . . . . . . . 1 . . . . . . . 1 . . . . . . . . . . . . . . . . . . . . . . Relay Couplers Released 28 | . . . . . . . . 13 . . . . . . . . . . . . . . . . . . . . . . . . . . . 12 3 . . . Machine Destruction 15 | . . . . . . . . 13 . . . . . . . . . . . . . . . . . . . . . . . . . . . 2 . . . . Programmers 13 | . . . . . . . . . . . . . . . . . . . . . . . . . . . . . . . . . . . . 10 3 . . . Fabnet Peak Effective % . | . . . . . . . . . . . . . . . . . . . . . . . . . . . . . . . . . . . . . . . . . Robots Rewired 32 | . . . . . . . . 3 . . . . 3 . . . . . 17 . . . . . . . . . . . 2 . . 7 . . . . . . Allies Hacked 3 | . . . . . . . . . . . . . . . . . . . . . . . . . . . . 2 . . . . . 1 . . . . . . Hacks Repelled . | . . . . . . . . . . . . . . . . . . . . . . . . . . . . . . . . . . . . . . . . . Allies | -11 -10 -10 -9 -9 -9 -8 -8 -8 -8 -7 -7 -7 -7 -7 -7 -7 -6 -6 -6 -6 -6 -6 -5 -5 -5 -5 -4 -4 -4 -4 -4 -3 -3 -3 -3 -2 -2 -2 -1 -1 -------- Run | Jun Mat Min Mat Min Exi Min Mat Gar Mat Fac Was Fac Low Low Zio Dee Pro Fac Ext Cet Arc Hub Fac Upp Upp Zhi Pro Fac Upp Upp War Pro Res Arm Lab Res Qua Sec Acc Com Total Allies 66 | . . 2 . . . . . 3 . . 19 . 3 . . . . . 22 . . . . . 1 . . 4 . . 2 . . 7 . . . . 3 . Largest Group 19 | . . 2 . . . . . 3 3 . 19 17 5 . . . . . 16 5 . . . . 1 1 1 3 . . 2 . . 6 . . . . 3 . Highest-Rated Group 467 | . . 47 . . . . . 70 70 . 465 395 119 . . . . . 467 157 . . . . 99 99 99 141 . . 130 . . 320 . . . . 138 . Highest-Rated Ally 99 | . . 31 . . . . . 25 25 . 35 31 31 . . . . . 39 39 . . . . 99 99 99 98 . . 65 . . 65 . . . . 46 . Total Orders 60 | . . . . . . . . . . . . . 2 . . . . 1 2 . . 12 12 . . . . 2 . . 4 1 3 6 . . . 15 . . STAY 15 | . . . . . . . . . . . . . 2 . . . . . 1 . . 6 . . . . . 1 . . 2 . . 3 . . . . . . FOLLOW 7 | . . . . . . . . . . . . . . . . . . . 1 . . . . . . . . 1 . . 2 . . 2 . . . 1 . . EXPLORE 24 | . . . . . . . . . . . . . . . . . . . . . . 3 6 . . . . . . . . . 2 1 . . . 12 . . RETURN 14 | . . . . . . . . . . . . . . . . . . 1 . . . 3 6 . . . . . . . . 1 1 . . . . 2 . . Ally Attacks 485 | . . 18 . . . . . . 10 . . 135 7 5 . . . . 134 13 . . . . 12 . 36 18 . . . . . 65 . . . . 32 . Total Damage 13375 | . . 169 . . . . . . 287 . . 1962 140 282 . . . . 3027 242 . . . . 829 . 2260 840 . . . . . 2781 . . . . 556 . Kills 79 | . . 4 . . . . . . 4 . . 18 . 2 . . . . 16 . . . . . 7 . 14 6 . . . . . 7 . . . . 1 . Allies Corrupted 7 | . . . . . . . . . . . . 2 1 . . . . . . . . . . . . . . 1 . . . . . 3 . . . . . . Allies Melted 5 | . . . . . . . . . . . . . . . . . . . 2 . . . . . . . . . . . . . . . . . . 1 . 2 Turrets Deployed 1 | . . . . . . . . . . . . . . 1 . . . . . . . . . . . . . . . . . . . . . . . . . . Intel | -11 -10 -10 -9 -9 -9 -8 -8 -8 -8 -7 -7 -7 -7 -7 -7 -7 -6 -6 -6 -6 -6 -6 -5 -5 -5 -5 -4 -4 -4 -4 -4 -3 -3 -3 -3 -2 -2 -2 -1 -1 ------- Run | Jun Mat Min Mat Min Exi Min Mat Gar Mat Fac Was Fac Low Low Zio Dee Pro Fac Ext Cet Arc Hub Fac Upp Upp Zhi Pro Fac Upp Upp War Pro Res Arm Lab Res Qua Sec Acc Com Robot Analysis Total 8 | . 2 . . . . . . . 1 . . . . . . . . . . . . . . . . 4 . . . . . . 1 . . . . . . . Derelict Logs Recovered 17 | . . 2 . . . . . . . . . . 2 2 . . 2 . . . . . . 2 3 . 1 . 1 2 . . . . . . . . . . Drone Launches 39 | . . . . . . . . . . . . . . . . . . 1 . . . 5 9 . . . . . . . 3 . 7 1 . . . 13 . . Drone Recoveries 29 | . . . . . . . . . . . . . . . . . . 1 . . . 4 6 . . . . . . . . 3 7 . . . . 8 . . Exploration | -11 -10 -10 -9 -9 -9 -8 -8 -8 -8 -7 -7 -7 -7 -7 -7 -7 -6 -6 -6 -6 -6 -6 -5 -5 -5 -5 -4 -4 -4 -4 -4 -3 -3 -3 -3 -2 -2 -2 -1 -1 ------------- Run | Jun Mat Min Mat Min Exi Min Mat Gar Mat Fac Was Fac Low Low Zio Dee Pro Fac Ext Cet Arc Hub Fac Upp Upp Zhi Pro Fac Upp Upp War Pro Res Arm Lab Res Qua Sec Acc Com Turns Passed 82539 | 146 1392 1062 3155 230 3636 456 1989 1422 1300 1472 767 1658 2933 4259 2400 3685 3104 1063 2101 616 708 1352 2498 3306 2266 277 1711 1548 1707 1577 1705 1474 1449 1858 965 2328 2488 2598 3513 8365 Spaces Moved 30825 | 54 690 553 1076 82 1273 140 729 392 365 497 394 712 1114 1518 983 1470 1168 400 706 174 100 410 768 1096 897 140 574 453 664 617 556 414 466 492 485 1297 1104 969 1507 3326 Core 377 | 4 . . . . . . . . . . . . . . . . . . . . . . . . . . . . . . . . . . 373 . . . . . Treads 24549 | 50 690 553 1076 82 1273 140 729 392 365 497 394 712 1114 1518 983 1126 3 . . 15 61 410 768 1096 897 140 574 420 . . . . . 156 112 1297 1104 969 1507 3326 Legs 5899 | . . . . . . . . . . . . . . . . 344 1165 400 706 159 39 . . . . . . 33 664 617 556 414 466 336 . . . . . . Wheels . | . . . . . . . . . . . . . . . . . . . . . . . . . . . . . . . . . . . . . . . . . Hover . | . . . . . . . . . . . . . . . . . . . . . . . . . . . . . . . . . . . . . . . . . Flight . | . . . . . . . . . . . . . . . . . . . . . . . . . . . . . . . . . . . . . . . . . Fastest Speed 50 | 50 160 160 160 243 163 241 151 238 162 242 160 160 240 160 240 160 210 210 210 180 160 160 160 240 240 160 240 240 210 240 210 210 240 240 50 160 160 151 151 143 Average Speed 204 | 154 160 160 237 243 245 244 158 291 254 242 168 212 240 239 240 183 210 210 213 209 202 236 236 240 240 185 240 250 239 240 219 239 240 240 91 160 187 155 151 153 Slowest Speed 330 | 160 160 160 243 243 250 250 238 325 325 245 245 240 240 240 240 270 240 210 300 240 240 240 240 240 240 240 240 330 240 240 240 240 240 240 240 160 245 295 227 295 Overloaded Moves . | . . . . . . . . . . . . . . . . . . . . . . . . . . . . . . . . . . . . . . . . . Propulsion Burnouts . | . . . . . . . . . . . . . . . . . . . . . . . . . . . . . . . . . . . . . . . . . Robots Hopped . | . . . . . . . . . . . . . . . . . . . . . . . . . . . . . . . . . . . . . . . . . Cave-ins Triggered . | . . . . . . . . . . . . . . . . . . . . . . . . . . . . . . . . . . . . . . . . . Teleports 1 | . . . . . . . . . . . . . . . . . . . . . . . . . . . . . . . . . . 1 . . . . . . Exploration Rate (%) 63 | 5 91 98 94 17 90 25 78 55 33 15 87 24 90 97 86 83 97 15 85 62 66 72 29 97 98 60 64 15 90 75 70 64 18 36 92 58 97 83 54 48 Regions Visited 40 Branch Regions 26 Pre-discovered Areas 13 | . 1 . . . 1 . 1 . . . . . 1 . 1 . 2 . . . . . . . 2 3 1 . . . . . . . . . . . . . Known Exits Taken 11 | . . . . . . . 1 . 1 . . 1 1 . . . 1 1 . . . . 1 . . . . 1 . . . 1 1 . . . . 1 . . Unknown Exits Taken 26 | 1 1 1 1 1 1 1 . . . . . . . 1 1 1 . . 1 1 1 1 . 1 1 1 1 . 1 1 1 . . 1 1 1 1 . 1 . Scrap Searched 25 | . . 2 . . . . . . . . . . 4 4 3 . 1 . . . . . . 2 2 . . . 3 3 . 1 . . . . . . . . Spaces Dug 493 | . 3 3 9 . . . 62 . . 8 . 4 56 60 2 30 8 1 43 . 1 8 22 41 14 . 2 5 4 9 22 3 9 3 13 10 5 12 11 10 Terrain Destroyed 2142 | . 37 15 57 . 8 . 103 7 49 8 4 4 144 117 2 125 46 6 84 79 4 26 72 97 29 . 46 98 11 20 33 27 32 38 15 58 32 201 198 210 Melee 20 | . . . 3 . . . 3 . . 8 . 4 . . 2 . . . . . . . . . . . . . . . . . . . . . . . . . Projectile 995 | . 3 5 8 . 8 . 1 . . . 4 . 6 42 . 16 43 6 17 12 4 26 67 97 29 . 19 34 11 20 33 14 32 38 15 30 27 99 102 127 AOE 1121 | . 34 10 46 . . . 99 7 49 . . . 138 73 . 109 . . 67 67 . . 5 . . . 27 64 . . . 13 . . . 28 5 102 96 82 Terrain Rammed . | . . . . . . . . . . . . . . . . . . . . . . . . . . . . . . . . . . . . . . . . . Walls Destroyed . | . . . . . . . . . . . . . . . . . . . . . . . . . . . . . . . . . . . . . . . . . Machines Disabled . | . . . . . . . . . . . . . . . . . . . . . . . . . . . . . . . . . . . . . . . . . Actions | -11 -10 -10 -9 -9 -9 -8 -8 -8 -8 -7 -7 -7 -7 -7 -7 -7 -6 -6 -6 -6 -6 -6 -5 -5 -5 -5 -4 -4 -4 -4 -4 -3 -3 -3 -3 -2 -2 -2 -1 -1 --------- Run | Jun Mat Min Mat Min Exi Min Mat Gar Mat Fac Was Fac Low Low Zio Dee Pro Fac Ext Cet Arc Hub Fac Upp Upp Zhi Pro Fac Upp Upp War Pro Res Arm Lab Res Qua Sec Acc Com Total 46506 | 81 839 649 1453 94 1602 206 1434 577 657 670 472 831 1322 1992 1000 2255 1816 572 1213 323 581 662 1243 1639 954 160 856 711 750 689 965 864 696 1061 1015 1477 1414 1807 2506 6398 Wait 9811 | . 46 31 138 2 91 4 512 48 171 74 22 58 130 302 . 558 603 105 228 29 439 133 216 422 17 3 217 113 53 45 282 394 128 349 409 65 147 468 642 2117 Move 30788 | 53 689 552 1075 81 1272 139 729 391 364 497 393 712 1113 1517 982 1469 1167 399 705 173 99 409 767 1095 896 139 573 452 663 616 555 413 465 491 484 1296 1103 968 1506 3326 Hop . | . . . . . . . . . . . . . . . . . . . . . . . . . . . . . . . . . . . . . . . . . Pick Up 508 | 5 13 5 29 . 37 7 17 3 8 8 3 8 5 24 2 26 7 7 2 10 3 12 31 5 5 1 1 10 5 7 10 4 9 21 23 11 13 25 14 72 Fast Attach 310 | 7 3 2 12 . 19 6 9 6 18 9 5 5 . 3 . 8 2 3 1 9 1 1 9 1 2 4 7 1 2 . 6 5 3 6 15 3 14 15 19 69 Attach 211 | . 1 3 9 1 6 4 15 3 2 8 . 5 1 9 . 12 8 3 . 3 3 2 8 2 3 1 1 3 1 . 2 . 6 14 7 2 6 13 6 38 Detach 299 | . 1 1 5 . 11 2 5 . 2 5 2 3 1 3 . 10 9 6 7 10 12 6 23 9 . 4 15 10 5 1 8 14 2 4 22 4 12 4 5 56 Swap 670 | . 8 8 34 . 13 11 27 12 11 10 9 11 22 18 3 19 . 10 12 14 2 11 17 1 . 1 4 22 3 . 10 5 18 26 . 21 38 87 66 86 Drop 674 | . 6 5 31 . 51 11 23 . 25 11 14 13 5 23 1 31 9 7 2 17 5 9 37 6 2 3 7 8 4 7 16 8 7 21 34 15 21 26 24 129 Fire 2662 | 16 66 34 113 9 102 20 70 67 50 1 24 1 23 92 . 82 11 30 56 58 16 78 132 97 29 . 31 89 14 13 60 21 58 60 21 59 60 198 210 491 Melee 130 | . . . 4 . . . 22 . . 45 . 13 . . 12 30 . . . . . . . . . 4 . . . . . . . . . . . . . . Ram . | . . . . . . . . . . . . . . . . . . . . . . . . . . . . . . . . . . . . . . . . . Kick 4 | . . . . . . . . . . . . . . . . . . 2 2 . . . . . . . . . . . . . . . . . . . . . Crush 61 | . 6 8 3 1 . 2 5 . 6 2 . 2 . 1 . 10 . . . . 1 1 3 . . . . 3 . . . . . . . . . 1 2 4 Escape Stasis 31 | . . . . . . . . 10 . . . . . . . . . . . . . . . . . . . . . . . . . . . . . . 12 9 Rewire 345 | . . . . . . . . 37 . . . . 22 . . . . . 198 . . . . 1 . . . . . . 16 . . 69 . 1 . . . 1 Trap . | . . . . . . . . . . . . . . . . . . . . . . . . . . . . . . . . . . . . . . . . . Miscellaneous 2 | . . . . . . . . . . . . . . . . . . . . . . . . . . . . . . . . . . . . . . 2 . . Route ------- -11/Junkyard -10/Materials (discovered 5 exits: *Mat x3 / [*Min x2]) -10/Mines (discovered 2 exits: *Mat x2) -9/Materials (discovered 6 exits: *Mat x3 / [*Min] / *Sto x2) -9/Mines -9/Exiles -8/Mines -8/Materials (discovered 2 exits: *Fac / Gar) -8/Garrison (discovered 3 exits: *Mat x3) -8/Materials -7/Factory -7/Waste -7/Factory (discovered 2 exits: *Low x2) -7/Lower Caves -7/Lower Caves (discovered 2 exits: *Fac / [*Zio]) -7/Zion (discovered 2 exits: [*Dee] / [*Pro]) -7/Deep Caves -6/Proximity Caves -6/Factory (discovered 2 exits: *Low / *Ext) -6/Extension (discovered 3 exits: *Fac x2 / [*Cet]) -6/Cetus (discovered 2 exits: *Fac / [*Arc]) -6/Archives (discovered 2 exits: *Hub x2) -6/Hub_04(d) (discovered 4 exits: *Fac x4) -5/Factory (discovered 2 exits: *Upp x2) -5/Upper Caves -5/Upper Caves (discovered 2 exits: *Fac / *Zhi) -5/Zhirov -4/Proximity Caves -4/Factory (discovered 3 exits: *Res / *Upp x2) -4/Upper Caves -4/Upper Caves (discovered 2 exits: *Res / [*War]) -4/Warlord -3/Proximity Caves -3/Research (discovered 3 exits: *Res x2 / *Arm) -3/Armory -3/Lab -2/Research (discovered 4 exits: *Acc x3 / *Qua) -2/Quarantine (discovered 2 exits: *Acc / *Sec) -2/Section 7 -1/Access -1/Command (discovered 2 exits: Sur x2) By MAIN.C's Side History --------- Turn | Location | Event 5 | -11/Junkyard | Discovered new exit (range 16) 147 | -11/Junkyard | Entered Materials 308 | -10/Materials | Discovered new exit (range 16) 312 | -10/Materials | Build established: Mutant 502 | -10/Materials | Discovered new exit (range 7) 639 | -10/Materials | Discovered new exit (range 9) 943 | -10/Materials | Discovered new exit (range 15) 1233 | -10/Materials | Discovered new exit (range 12) 1508 | -10/Materials | Repaired Lgt. Treads 1539 | -10/Materials | Entered Mines 1543 | -10/Mines | Met a Derelict bent on vengeance 1566 | -10/Mines | Met a Derelict testing a Signal Generator 1574 | -10/Mines | Found Signal Generator 1624 | -10/Mines | Learned Materials trap positions 1820 | -10/Mines | Excavation squad dispatched 1820 | -10/Mines | A large section of the Mines collapsed 1930 | -10/Mines | Discovered new exit (range 5) 1951 | -10/Mines | Learned 2 Materials zone layouts 2013 | -10/Mines | A weapon hastily lodged in a ceiling crevice suddenly fell to the ground 2101 | -10/Mines | Found a damaged Exp. Sensor Array with a note attached 2105 | -10/Mines | Found Prototype Device 2272 | -10/Mines | Discovered new exit (range 5) 2281 | -10/Mines | Core integrity fell below 50% 2601 | -10/Mines | Entered Materials 2601 | -9/Materials | Evolved 2 slots: Propulsion x1, Utility x1 2602 | -9/Materials | Identified exit to Storage 2603 | -9/Materials | Loaded intel: 16 trap records 2610 | -9/Materials | Identified Exp. Sensor Array 3016 | -9/Materials | Repaired Corrupted Lgt. Treads 3105 | -9/Materials | Discovered new exit (range 11) 3357 | -9/Materials | Discovered new exit (range 15) 4125 | -9/Materials | Discovered new exit (range 12) 4286 | -9/Materials | Discovered exit to Storage (range 3) 4936 | -9/Materials | Discovered new exit (range 5) 5401 | -9/Materials | First assault squad dispatched 5756 | -9/Materials | Entered Mines 5783 | -9/Mines | Deemed a non-threat by the Exiles lab entrance 5783 | -9/Mines | Discovered new exit (range 5) 5917 | -9/Mines | Assembled infested the area 5986 | -9/Mines | Entered Exiles 6045 | -9/Exiles | Met 8R-AWN 6081 | -9/Exiles | Met EX-HEX 6174 | -9/Exiles | Met EX-DEC 6215 | -9/Exiles | Learned location of Zion (-7) 6368 | -9/Exiles | Discovered new exit (range 12) 7047 | -9/Exiles | Met EX-BIN 7081 | -9/Exiles | Aligned with FarCom system 7083 | -9/Exiles | Given EX-Vault access code 7139 | -9/Exiles | Opened EX-Vault 7167 | -9/Exiles | Found Lightpack 2.0 7336 | -9/Exiles | Found XL Autogun Array 7388 | -9/Exiles | Warned to stay clear of 0b10 Research branches 7595 | -9/Exiles | Attacked by the Exiles 7766 | -9/Exiles | Lost 4 parts (2n1u1w) 7785 | -9/Exiles | Destroyed 8R-AWN 7793 | -9/Exiles | Found Prototype Ballistic Gun 7799 | -9/Exiles | Found Prototype Ballistic Gun 7815 | -9/Exiles | Found Prototype Device 7815 | -9/Exiles | Identified AS-neutralizer No. 17b 7824 | -9/Exiles | Found Prototype Processor 7873 | -9/Exiles | Identified 8R-AWN's Boregun (x2) 8204 | -9/Exiles | Destroyed EX-HEX 8278 | -9/Exiles | Destroyed EX-BIN 8372 | -9/Exiles | Identified Exp. Targeting Computer 8461 | -9/Exiles | Destroyed EX-DEC 8472 | -9/Exiles | Found Prototype Processor 8478 | -9/Exiles | Identified Exp. Core Analyzer 8511 | -9/Exiles | Found Prototype Device 8518 | -9/Exiles | Identified System Purifier 8973 | -9/Exiles | Found Deploy-a-Sentry 9360 | -9/Exiles | Found Trap Reconfigurator 9569 | -9/Exiles | Found Prototype Protection 9622 | -9/Exiles | Stole three prototypes: Trap Reconfigurator, XL Autogun Array, Deploy-a-Sentry 9622 | -9/Exiles | Entered Mines 9735 | -8/Mines | CL-ANK came to Exiles' defense 9745 | -8/Mines | Core integrity fell below 50% 9795 | -8/Mines | Core integrity fell below 20% 9802 | -8/Mines | Destroyed CL-ANK 9808 | -8/Mines | Found Prototype Impact Weapon 9871 | -8/Mines | Found Prototype Processor 9878 | -8/Mines | Identified CL-ANK's Mallet 9922 | -8/Mines | Discovered new exit (range 9) 10078 | -8/Mines | Entered Materials 10078 | -8/Materials | Evolved 2 slots: Propulsion x1, Utility x1 10340 | -8/Materials | Identified Exp. Melee Analysis Suite 10758 | -8/Materials | Discovered new exit (range 16) 10823 | -8/Materials | Build established: Scavenger-Gladiator 10864 | -8/Materials | Identified exit to Factory 11493 | -8/Materials | Build established: Scavenger-Mutant 11788 | -8/Materials | Garrison activated, responded to threat 11791 | -8/Materials | Destroyed 8 combat bots 12067 | -8/Materials | Identified exit to Garrison 12067 | -8/Materials | Entered Garrison 12202 | -8/Garrison | Garrison Relay disabled 12367 | -8/Garrison | Triggered checkpoint 12417 | -8/Garrison | Destroyed 9 combat bots 12424 | -8/Garrison | Lost 7 parts (1p3n2u1w) 12508 | -8/Garrison | Triggered checkpoint 12652 | -8/Garrison | Garrison Relay disabled 12719 | -8/Garrison | Discovered new exit (range 8) 12996 | -8/Garrison | Discovered new exit (range 12) 13028 | -8/Garrison | Identified exit to Materials 13104 | -8/Garrison | Triggered checkpoint 13179 | -8/Garrison | Garrison Relay disabled 13202 | -8/Garrison | Discovered exit to Materials (range 71) 13202 | -8/Garrison | Discovered exit to Materials (range 57) 13202 | -8/Garrison | Discovered exit to Materials (range 12) 13343 | -8/Garrison | Core integrity fell below 50% 13489 | -8/Garrison | Entered Materials 13489 | -8/Materials | Accompanied by 3 allies 13587 | -8/Materials | Repaired Arm. Treads 13614 | -8/Materials | Repaired Lgt. Treads 13676 | -8/Materials | Repaired Enh. Autogun 14289 | -8/Materials | First assault squad dispatched 14397 | -8/Materials | Build established: Mutant 14780 | -8/Materials | Discovered exit to Factory (range 4) 14789 | -8/Materials | Entered Factory 14789 | -7/Factory | Evolved 2 slots: Power x1, Utility x1 15126 | -7/Factory | Build established: Scavenger-Mutant 16126 | -7/Factory | Build established: Mutant 16261 | -7/Factory | Discovered new exit (range 11) 16261 | -7/Factory | Sucked down chute 16261 | -7/Factory | Entered Waste 16272 | -7/Waste | Destroyed C-40 Crusher 16310 | -7/Waste | Spotted C-40 Crusher 16312 | -7/Waste | Destroyed C-40 Crusher 16318 | -7/Waste | Destroyed C-40 Crusher 16332 | -7/Waste | Destroyed C-40 Crusher 16354 | -7/Waste | Destroyed C-40 Crusher 16429 | -7/Waste | Destroyed C-40 Crusher 16675 | -7/Waste | Build established: Scavenger-Mutant 16684 | -7/Waste | Discovered new exit (range 13) 16866 | -7/Waste | Warlord forces began an assault 17028 | -7/Waste | Entered Factory 17028 | -7/Factory | Accompanied by 17 allies 18172 | -7/Factory | Identified exit to Lower Caves 18686 | -7/Factory | Entered Lower Caves 18686 | -7/Lower Caves | Accompanied by 5 allies 18694 | -7/Lower Caves | Met a Warlord Commander 18695 | -7/Lower Caves | Learned location of Warlord (-4) 18712 | -7/Lower Caves | Found Encrypted Comm Array 19151 | -7/Lower Caves | Encountered a Warlord checkpoint 19323 | -7/Lower Caves | Attacked by a delusional Derelict stockpiling Unaware 19432 | -7/Lower Caves | Identified exit to Lower Caves 19707 | -7/Lower Caves | Spotted B-75 Beast 20177 | -7/Lower Caves | Learned location of 1 exit from Factory 20386 | -7/Lower Caves | Attracted the attention of an 0b10 checkpoint 21196 | -7/Lower Caves | Found Prototype Device 21619 | -7/Lower Caves | Entered another Lower Caves area 21730 | -7/Lower Caves | Discovered new exit (range 4) 21745 | -7/Lower Caves | Identified exit to Factory 22156 | -7/Lower Caves | Attacked by a faux Warlord 23191 | -7/Lower Caves | Attracted the attention of an 0b10 checkpoint 23427 | -7/Lower Caves | Learned 4 Factory zone layouts 23504 | -7/Lower Caves | Identified Heart of Steel 24725 | -7/Lower Caves | Discovered new exit (range 15) 24730 | -7/Lower Caves | Spotted KI-P3O(f) 24731 | -7/Lower Caves | Encountered a Master Thief 24731 | -7/Lower Caves | Encountered a Master Thief 24731 | -7/Lower Caves | Encountered a Master Thief 24731 | -7/Lower Caves | Spotted TD-0I0(f) 24731 | -7/Lower Caves | Spotted LN-3NB(f) 24732 | -7/Lower Caves | Spotted V6-Z69(f) 24733 | -7/Lower Caves | Encountered a Master Thief 24734 | -7/Lower Caves | DAS Turret deployed 24735 | -7/Lower Caves | Allies destroyed TD-0I0(f) 24737 | -7/Lower Caves | Trap Reconfigurator stolen by Master Thief 24737 | -7/Lower Caves | Exp. Core Analyzer stolen by Master Thief 24738 | -7/Lower Caves | 8R-AWN's Boregun stolen by Master Thief 24741 | -7/Lower Caves | Allies destroyed LN-3NB(f) 25878 | -7/Lower Caves | Entered Zion 26054 | -7/Zion | Discovered new exit (range 8) 27606 | -7/Zion | Given the Hacking Drone Bay 27616 | -7/Zion | Found Prototype Device 28269 | -7/Zion | Discovered new exit (range 5) 28271 | -7/Zion | Saw the warning signs outside the Deep Caves entrance 28278 | -7/Zion | Entered Deep Caves 28764 | -7/Deep Caves | Attacked by Z-Imprinter 28780 | -7/Deep Caves | Destroyed Z-Imprinter 28819 | -7/Deep Caves | Found Prototype Protection 28819 | -7/Deep Caves | Identified Zio. Weapon Casing 28927 | -7/Deep Caves | Z-Facility disabled 29115 | -7/Deep Caves | Found Prototype Protection 29128 | -7/Deep Caves | Found Prototype Protection 29131 | -7/Deep Caves | Found Prototype Protection 29133 | -7/Deep Caves | Identified Zio. Heavy Carapace (x3) 29268 | -7/Deep Caves | Discovered new exit (range 6) 29717 | -7/Deep Caves | Spotted as-19256 29748 | -7/Deep Caves | Destroyed as-19256 29774 | -7/Deep Caves | Found GOLEM Unit 29970 | -7/Deep Caves | Found Zio. Heavy Carapace 30173 | -7/Deep Caves | Spotted as-67322 30212 | -7/Deep Caves | Destroyed as-67322 30242 | -7/Deep Caves | Lost 3 parts (3u) 30245 | -7/Deep Caves | Exposed GOLEM chamber 30246 | -7/Deep Caves | Triggered Deep Caves wall 30246 | -7/Deep Caves | Spotted AS-17361 30247 | -7/Deep Caves | Spotted AS-65092 30281 | -7/Deep Caves | Destroyed AS-17361 30285 | -7/Deep Caves | Destroyed AS-65092 30297 | -7/Deep Caves | Found AWS/Gauss 30304 | -7/Deep Caves | Lost 3 parts (1p2u) 30306 | -7/Deep Caves | Destroyed 40 combat bots 30350 | -7/Deep Caves | Found GOLEM Unit 30539 | -7/Deep Caves | Found GOLEM Unit 30698 | -7/Deep Caves | Identified Hacking Drone Bay 30793 | -7/Deep Caves | Found GOLEM Unit 31085 | -7/Deep Caves | Build established: Golem 31226 | -7/Deep Caves | Found GOLEM Unit 31232 | -7/Deep Caves | Found GOLEM Unit 31518 | -7/Deep Caves | Build established: Mutant 31547 | -7/Deep Caves | Found Zio. Weapon Casing 31963 | -7/Deep Caves | Entered Proximity Caves 31972 | -6/Proximity Caves | Attracted the attention of an 0b10 outpost 32099 | -6/Proximity Caves | Spotted B-75 Beast 32125 | -6/Proximity Caves | Core integrity fell below 50% 32235 | -6/Proximity Caves | Learned location of Extension (-6) 32829 | -6/Proximity Caves | Build established: Infiltrator-Mutant 33803 | -6/Proximity Caves | Discovered exit to Factory (range 14) 34851 | -6/Proximity Caves | Build established: Golem 35067 | -6/Proximity Caves | Entered Factory 35067 | -6/Factory | Evolved 2 slots: Utility x2 35068 | -6/Factory | Identified exit to Extension 35069 | -6/Factory | Identified exit to Lower Caves 35364 | -6/Factory | Build established: Infiltrator-Golem 36130 | -6/Factory | Entered Extension 36145 | -6/Extension | Build established: Golem 36658 | -6/Extension | Rescued a captive Derelict 36660 | -6/Extension | Rescued a captive Derelict 36735 | -6/Extension | Rescued a captive Derelict 36736 | -6/Extension | Rescued a captive Derelict 36860 | -6/Extension | Rescued a captive Derelict 36966 | -6/Extension | Energy Cycler disabled 36966 | -6/Extension | Rescued a captive Derelict 36966 | -6/Extension | Rescued a captive Derelict 36966 | -6/Extension | Rescued a captive Derelict 36967 | -6/Extension | Rescued a captive Derelict 36967 | -6/Extension | Rescued a captive Derelict 36968 | -6/Extension | Rescued a captive Derelict 36970 | -6/Extension | Rescued a captive Derelict 36972 | -6/Extension | Rescued a captive Derelict 37010 | -6/Extension | Disrupted transfer network 37111 | -6/Extension | Build established: Commander-Golem 37290 | -6/Extension | Spotted B-75 Beast 37300 | -6/Extension | Allies destroyed B-75 Beast 37337 | -6/Extension | Discovered new exit (range 15) 37375 | -6/Extension | Extracted ID and sensor layout for unrecognized location from A7's data core 37760 | -6/Extension | Build established: Golem 38113 | -6/Extension | Build established: Commander-Golem 38145 | -6/Extension | Discovered new exit (range 14) 38151 | -6/Extension | Discovered new exit (range 8) 38231 | -6/Extension | Entered Cetus 38231 | -6/Cetus | Accompanied by 5 allies 38259 | -6/Cetus | Spotted Cetus Guard 38259 | -6/Cetus | Spotted Cetus Guard 38261 | -6/Cetus | Spotted Cetus Guard 38263 | -6/Cetus | Spotted Cetus Guard 38279 | -6/Cetus | Destroyed Cetus Guard 38311 | -6/Cetus | Destroyed Cetus Guard 38320 | -6/Cetus | Destroyed Cetus Guard 38327 | -6/Cetus | Destroyed Cetus Guard 38362 | -6/Cetus | Lost 5 parts (1p3u1w) 38370 | -6/Cetus | Destroyed 7 combat bots 38539 | -6/Cetus | Discovered new exit (range 15) 38657 | -6/Cetus | Spotted Cetus Guard 38657 | -6/Cetus | Spotted Cetus Guard 38660 | -6/Cetus | Spotted Cetus Guard 38665 | -6/Cetus | Destroyed Cetus Guard 38668 | -6/Cetus | Destroyed Cetus Guard 38669 | -6/Cetus | Spotted Cetus Guard 38680 | -6/Cetus | Build established: Scavenger-Golem 38683 | -6/Cetus | Destroyed Cetus Guard 38689 | -6/Cetus | Destroyed Cetus Guard 38711 | -6/Cetus | Discovered new exit (range 15) 38724 | -6/Cetus | Met Revision 17 38847 | -6/Cetus | Entered Archives 39159 | -6/Archives | Build established: Golem 39196 | -6/Archives | Discovered new exit (range 15) 39213 | -6/Archives | Discovered new exit (range 13) 39555 | -6/Archives | Entered Hub_04(d) 39555 | -6/Hub_04(d) | Discovered new exit (range 11) 40363 | -6/Hub_04(d) | Discovered new exit (range 7) 40453 | -6/Hub_04(d) | Discovered new exit (range 6) 40653 | -6/Hub_04(d) | Network Hub disabled 40698 | -6/Hub_04(d) | Spotted Lightning 40698 | -6/Hub_04(d) | Spotted Lightning 40698 | -6/Hub_04(d) | Spotted Lightning 40699 | -6/Hub_04(d) | Discovered new exit (range 24) 40705 | -6/Hub_04(d) | Destroyed Lightning 40717 | -6/Hub_04(d) | Destroyed Lightning 40723 | -6/Hub_04(d) | Destroyed Lightning 40753 | -6/Hub_04(d) | Found Prototype Device 40753 | -6/Hub_04(d) | Identified Exp. Phase Shifter 40759 | -6/Hub_04(d) | Found Prototype Device 40760 | -6/Hub_04(d) | Identified Exp. EM Disruption Field 40831 | -6/Hub_04(d) | Spotted Lightning 40833 | -6/Hub_04(d) | Spotted Lightning 40887 | -6/Hub_04(d) | Network Hub disabled 40902 | -6/Hub_04(d) | Spotted Lightning 40907 | -6/Hub_04(d) | Entered Factory 40907 | -5/Factory | Evolved 2 slots: Utility x2 40928 | -5/Factory | Identified exit to Upper Caves 41010 | -5/Factory | Build established: Scavenger-Golem 41371 | -5/Factory | Build established: Golem 41912 | -5/Factory | Fabricated Adv. Transmission Jammer (x1) 42154 | -5/Factory | Build established: Scavenger-Golem 43007 | -5/Factory | First assault squad dispatched 43175 | -5/Factory | Destroyed 9 combat bots 43320 | -5/Factory | Build established: Golem 43405 | -5/Factory | Entered Upper Caves 43647 | -5/Upper Caves | Learned Factory security intel 43930 | -5/Upper Caves | Attracted the attention of an 0b10 outpost 44170 | -5/Upper Caves | Spotted B-75 Beast 44935 | -5/Upper Caves | Encountered a Warlord checkpoint 45066 | -5/Upper Caves | Learned Factory trap positions 45335 | -5/Upper Caves | Attracted the attention of an 0b10 checkpoint 45911 | -5/Upper Caves | Discovered new exit (range 8) 46711 | -5/Upper Caves | Entered another Upper Caves area 46711 | -5/Upper Caves | Spotted 86-ZG6(f) 46712 | -5/Upper Caves | Encountered a Master Thief 46712 | -5/Upper Caves | XL Autogun Array stolen by Master Thief 46715 | -5/Upper Caves | Heart of Steel transformed into Warbot 46715 | -5/Upper Caves | Allies destroyed 86-ZG6(f) 46717 | -5/Upper Caves | Spotted F3-JUU(f) 46718 | -5/Upper Caves | Encountered a Master Thief 46718 | -5/Upper Caves | Destroyed F3-JUU(f) 46730 | -5/Upper Caves | Learned location of Armory (-3) 46881 | -5/Upper Caves | Discovered new exit (range 13) 46951 | -5/Upper Caves | Learned Factory interactive machine intel 47343 | -5/Upper Caves | Encountered a Warlord checkpoint 47898 | -5/Upper Caves | Attracted the attention of an 0b10 checkpoint 48167 | -5/Upper Caves | Found Alien Artifact 48167 | -5/Upper Caves | Identified Dimensional Node Initializer 48167 | -5/Upper Caves | Initialized slip node 48217 | -5/Upper Caves | Spotted B-75 Beast 48234 | -5/Upper Caves | Destroyed B-75 Beast 48533 | -5/Upper Caves | Discovered new exit (range 11) 48977 | -5/Upper Caves | Entered Zhirov 48977 | -5/Zhirov | Accompanied by 1 ally (Warbot) 48979 | -5/Zhirov | Discovered new exit (range 3) 49009 | -5/Zhirov | Met Zhirov 49057 | -5/Zhirov | Learned location of Quarantine (-2) 49057 | -5/Zhirov | Learned location of Testing (-3) 49057 | -5/Zhirov | Learned location of Command (-1) 49071 | -5/Zhirov | Zhirov requested help retrieving the SGEMP Prototype 49096 | -5/Zhirov | Found Alien Artifact 49096 | -5/Zhirov | Identified Integrated Dissipator 49096 | -5/Zhirov | Installed Integrated Dissipator, increased core heat dissipation (+20) 49115 | -5/Zhirov | Found Alien Artifact 49254 | -5/Zhirov | Entered Proximity Caves 49254 | -4/Proximity Caves | Accompanied by 1 ally (Warbot) 49298 | -4/Proximity Caves | Spotted B-86 Titan 49317 | -4/Proximity Caves | Spotter reported a threat 49366 | -4/Proximity Caves | Spotter reported a threat 49370 | -4/Proximity Caves | Spotter reported a threat 49964 | -4/Proximity Caves | Attracted the attention of an 0b10 checkpoint 50051 | -4/Proximity Caves | Unaware initiated a cargo recovery operation 50296 | -4/Proximity Caves | Found Prototype Device 50296 | -4/Proximity Caves | Identified Exp. Actuator Array 50637 | -4/Proximity Caves | Discovered new exit (range 13) 50965 | -4/Proximity Caves | Entered Factory 50965 | -4/Factory | Accompanied by 1 ally (Warbot) 50965 | -4/Factory | Evolved 2 slots: Utility x1, Weapon x1 50966 | -4/Factory | Loaded intel: 108 trap records 50968 | -4/Factory | Loaded intel: 51 interactive machine locations 50988 | -4/Factory | Discovered new exit (range 12) 51245 | -4/Factory | Search patrols dispatched 51257 | -4/Factory | Identified exit to Research 51500 | -4/Factory | Search patrols dispatched 51689 | -4/Factory | Identified exit to Upper Caves 52179 | -4/Factory | Repaired Centrium Heavy Treads 52503 | -4/Factory | First assault squad dispatched 52513 | -4/Factory | Entered Upper Caves 52798 | -4/Upper Caves | Build established: Infiltrator-Golem 52918 | -4/Upper Caves | Found Alien Artifact 52918 | -4/Upper Caves | Identified Core Expander 52918 | -4/Upper Caves | Installed Core Expander, added new Utility slot 53286 | -4/Upper Caves | Attracted the attention of an 0b10 checkpoint 53722 | -4/Upper Caves | Learned location of 1 exit from Research 54015 | -4/Upper Caves | Discovered new exit (range 12) 54220 | -4/Upper Caves | Entered another Upper Caves area 54245 | -4/Upper Caves | Discovered exit to Research (range 9) 54291 | -4/Upper Caves | Attracted the attention of an 0b10 checkpoint 54339 | -4/Upper Caves | Learned Research emergency access door positions 54529 | -4/Upper Caves | Learned Research garrison access intel 55765 | -4/Upper Caves | Discovered new exit (range 6) 55797 | -4/Upper Caves | Entered Warlord 55868 | -4/Warlord | System corruption cleaned by Quarantine Array 56396 | -4/Warlord | Found Prototype Device 56399 | -4/Warlord | Found Prototype Device 56522 | -4/Warlord | Met Warlord 56547 | -4/Warlord | Warlord's base attacked by MAIN.C 56556 | -4/Warlord | Found Prototype Device 56556 | -4/Warlord | Identified Exp. Focal Shield 56569 | -4/Warlord | Found Prototype Reactor 56569 | -4/Warlord | Identified Vortex Chain Reactor 56577 | -4/Warlord | Found Prototype Device 56577 | -4/Warlord | Identified Exp. Cloaking Device 56619 | -4/Warlord | Identified Minesniffer Drone Bay (x2) 56897 | -4/Warlord | Warlord forces counterattacked 56910 | -4/Warlord | Build established: Golem 56931 | -4/Warlord | Spotted Executioner 57066 | -4/Warlord | Spotted Striker 57078 | -4/Warlord | Spotted Striker 57222 | -4/Warlord | Warlord base infiltrated, sounded retreat 57229 | -4/Warlord | Spotted Striker 57257 | -4/Warlord | Spotted Executioner 57275 | -4/Warlord | Destroyed Executioner 57299 | -4/Warlord | Spotted B-90 Cyclops 57375 | -4/Warlord | Spotted Striker 57377 | -4/Warlord | Destroyed Striker 57445 | -4/Warlord | Discovered new exit (range 15) 57449 | -4/Warlord | Spotted Striker 57502 | -4/Warlord | Entered Proximity Caves 57502 | -3/Proximity Caves | Accompanied by 3 allies 58286 | -3/Proximity Caves | Attracted the attention of an 0b10 checkpoint 58564 | -3/Proximity Caves | Discovered exit to Research (range 15) 58585 | -3/Proximity Caves | Build established: Scavenger-Golem 58976 | -3/Proximity Caves | Entered Research 58976 | -3/Research | Evolved 2 slots: Power x1, Weapon x1 58977 | -3/Research | Identified exit to Armory 58979 | -3/Research | Loaded intel: 4 garrison access locations 59449 | -3/Research | Fabricated Adv. Weapon Cycler (x2) 59515 | -3/Research | Discovered new exit (range 19) 59897 | -3/Research | Repaired Imp. Medium Armor Plating 60084 | -3/Research | Discovered new exit (range 16) 60126 | -3/Research | Build established: Scavenger-Mutant 60425 | -3/Research | Entered Armory 60715 | -3/Armory | Found Antimissile System 60984 | -3/Armory | P-80 Master assimilated allied Assassin 8a 61027 | -3/Armory | Fabricated Enh. Gamma Bomb Array? 61110 | -3/Armory | Fabricated Adv. Transmission Jammer (x1) 61221 | -3/Armory | Fabricated Enh. Gamma Bomb Array (x1) 61468 | -3/Armory | Found Prototype Protection 61468 | -3/Armory | Identified Centrium Heavy Armor Plating 61476 | -3/Armory | Found Prototype Device 61481 | -3/Armory | Identified Adv. EM Disruption Field 61492 | -3/Armory | Found Prototype Device 61511 | -3/Armory | P-80 Master assimilated allied Archangel 8a 61528 | -3/Armory | Build established: Scavenger-Tank 61550 | -3/Armory | Identified Exp. Thermal Shield 61738 | -3/Armory | Fabricated Centrium Heavy Treads (x1) 61882 | -3/Armory | Spotted B-86 Titan 61925 | -3/Armory | First assault squad dispatched 61936 | -3/Armory | Destroyed B-86 Titan 62145 | -3/Armory | Fabricated Centrium Heavy Treads (x1) 62179 | -3/Armory | Found Centrium Heavy Armor Plating 62184 | -3/Armory | Found Centrium Heavy Armor Plating 62197 | -3/Armory | Identified Transdimensional Reconstructor 62197 | -3/Armory | Warped through subspace to slip node 62197 | -3/Armory | Discovered new exit (range 1) 62263 | -3/Armory | Fabricated Centrium Heavy Treads (x1) 62283 | -3/Armory | Entered Lab 62304 | -3/Lab | Discovered new exit (range 9) 62391 | -3/Lab | Hidden lab's door opened automatically 62391 | -3/Lab | Sensor layout match revealed 62392 | -3/Lab | Gained access to the hidden lab's interior 62480 | -3/Lab | Unable to decrypt terminal 62511 | -3/Lab | Found Alien Artifact 62530 | -3/Lab | Found Alien Artifact 62530 | -3/Lab | Identified Integrated Mediator 62530 | -3/Lab | Installed Integrated Mediator, increased core attachment efficiency. 62533 | -3/Lab | Found Transdimensional Reconstructor 62602 | -3/Lab | Found Prototype Energy Cannon 62639 | -3/Lab | Found Prototype Protection 62641 | -3/Lab | Found Quantum Router 62644 | -3/Lab | Found Prototype Energy Cannon 62653 | -3/Lab | Identified Exp. Powered Armor 62675 | -3/Lab | Build established: Mutant 62702 | -3/Lab | Identified Warp Cannon 62708 | -3/Lab | Found Alien Artifact 62708 | -3/Lab | Identified Core Regenerator 62708 | -3/Lab | Used Core Regenerator, restored core integrity (+136) 62720 | -3/Lab | Found Prototype Special Weapon 63162 | -3/Lab | Identified Potential Cannon 63248 | -3/Lab | Entered Research 63248 | -2/Research | Warlord forces began assault on 0b10 63248 | -2/Research | Evolved 2 slots: Propulsion x2 63273 | -2/Research | Distinguished unit "Grunt Murderers" dispatched to help 63330 | -2/Research | Spotted B-90 Cyclops 63358 | -2/Research | Research machine network offline 63418 | -2/Research | Destroyed B-90 Cyclops 63502 | -2/Research | Spotted Executioner 63503 | -2/Research | Spotted Executioner 63503 | -2/Research | Spotted Executioner 63507 | -2/Research | Spotted Executioner 63508 | -2/Research | Destroyed Executioner 63513 | -2/Research | Destroyed Executioner 63516 | -2/Research | Destroyed Executioner 63516 | -2/Research | Destroyed Executioner 63539 | -2/Research | Destroyed 9 combat bots 63544 | -2/Research | Found Corrupted Prototype Device 63549 | -2/Research | Identified Adv. Kinecellerator 63640 | -2/Research | Borebot progress halted 63668 | -2/Research | Spotted ZY-Y7X(D) 63688 | -2/Research | Met up with Warlord 63698 | -2/Research | Found Adv. Kinecellerator 63766 | -2/Research | Borebot progress halted 63878 | -2/Research | Build established: Machinist-Tank 63905 | -2/Research | Discovered new exit (range 15) 63952 | -2/Research | Spotted Executioner 63956 | -2/Research | Spotted Executioner 63958 | -2/Research | Destroyed Executioner 63981 | -2/Research | Destroyed Executioner 63988 | -2/Research | Discovered new exit (range 6) 64101 | -2/Research | Discovered new exit (range 5) 64112 | -2/Research | Discovered new exit (range 16) 64150 | -2/Research | Spotted B-90 Cyclops 64467 | -2/Research | Build established: Machinist-Mutant 65528 | -2/Research | Identified exit to Access 65576 | -2/Research | Entered Quarantine 65716 | -2/Quarantine | Identified Core Reset Matrix 65747 | -2/Quarantine | Cryocooling Duct disabled 65762 | -2/Quarantine | Ambient heat levels rising (+20) 65762 | -2/Quarantine | Non-combat units ordered to evacuate 65783 | -2/Quarantine | Cryocooling Duct disabled 65798 | -2/Quarantine | Ambient heat levels rising (+20) 65798 | -2/Quarantine | Combat units ordered to evacuate 65820 | -2/Quarantine | Spotted 2U-KGO(g) 65825 | -2/Quarantine | Destroyed 2U-KGO(g) 65865 | -2/Quarantine | Spotted Alpha 7 65881 | -2/Quarantine | Destroyed Alpha 7 65898 | -2/Quarantine | Quarantine Guard activated 65935 | -2/Quarantine | Spotted Quarantine Guard 65948 | -2/Quarantine | Spotted Quarantine Guard 65960 | -2/Quarantine | Spotted Quarantine Guard 65960 | -2/Quarantine | Spotted Quarantine Guard 65961 | -2/Quarantine | Spotted Quarantine Guard 65963 | -2/Quarantine | Spotted Quarantine Guard 65971 | -2/Quarantine | Destroyed Quarantine Guard 65971 | -2/Quarantine | Destroyed Quarantine Guard 65973 | -2/Quarantine | Destroyed Quarantine Guard 65979 | -2/Quarantine | Destroyed Quarantine Guard 65995 | -2/Quarantine | Destroyed Quarantine Guard 66013 | -2/Quarantine | Spotted Quarantine Guard 66026 | -2/Quarantine | Destroyed 7 combat bots 66030 | -2/Quarantine | Destroyed Quarantine Guard 66337 | -2/Quarantine | Build established: Infiltrator-Tank 66417 | -2/Quarantine | Spotted Quarantine Guard 66425 | -2/Quarantine | Destroyed Quarantine Guard 66489 | -2/Quarantine | Spotted Quarantine Guard 66503 | -2/Quarantine | Destroyed Quarantine Guard 66543 | -2/Quarantine | Discovered exit to Access (range 15) 66644 | -2/Quarantine | Destroyed Quarantine Guard 66743 | -2/Quarantine | Spotted Quarantine Guard 66757 | -2/Quarantine | Destroyed Quarantine Guard 66911 | -2/Quarantine | Found Alien Artifact 67177 | -2/Quarantine | Build established: Scavenger-Mutant 67426 | -2/Quarantine | Found Alien Launcher 67426 | -2/Quarantine | Identified Sigix Terminator 67567 | -2/Quarantine | Spotted Fortress 67585 | -2/Quarantine | Destroyed Fortress 67629 | -2/Quarantine | Found Prototype Device 67629 | -2/Quarantine | Identified Exp. Force Field 67653 | -2/Quarantine | Found Vortex Chain Reactor 67799 | -2/Quarantine | Discovered new exit (range 6) 67799 | -2/Quarantine | Spotted Quarantine Guard 67804 | -2/Quarantine | Destroyed Quarantine Guard 68064 | -2/Quarantine | Entered Section 7 68095 | -2/Section 7 | Found Integrated Dissipator 68095 | -2/Section 7 | Installed Integrated Dissipator, increased core heat dissipation (+20) 68332 | -2/Section 7 | Found Alien Artifact 68610 | -2/Section 7 | Destroyed 13 combat bots 68611 | -2/Section 7 | First assault squad dispatched 68684 | -2/Section 7 | Build established: Scavenger-Tank 68727 | -2/Section 7 | Found Alien Artifact 68896 | -2/Section 7 | Destroyed 9 combat bots 68921 | -2/Section 7 | Identified Integrity Redistributor (x2) 69078 | -2/Section 7 | Spotted S7 Guard 69101 | -2/Section 7 | Destroyed S7 Guard 69125 | -2/Section 7 | System corruption reached 10% 69196 | -2/Section 7 | Found Corrupted Prototype Protection 69196 | -2/Section 7 | Identified Hvy. Regenerative Plating 69199 | -2/Section 7 | Destroyed 10 combat bots 69207 | -2/Section 7 | Found Alien Artifact 69264 | -2/Section 7 | High security lockdown imminent 69310 | -2/Section 7 | Identified Core Membrane 69327 | -2/Section 7 | Installed Core Membrane, gained immunity to corruption 69344 | -2/Section 7 | High security lockdown engaged 69491 | -2/Section 7 | Destroyed 19 combat bots 69549 | -2/Section 7 | Spotted Executioner 69552 | -2/Section 7 | Spotted Striker 69556 | -2/Section 7 | Destroyed Executioner 69559 | -2/Section 7 | Destroyed Striker 69582 | -2/Section 7 | Destroyed 14 combat bots 69704 | -2/Section 7 | Spotted Striker 69706 | -2/Section 7 | Destroyed Striker 69751 | -2/Section 7 | Destroyed 27 combat bots 69795 | -2/Section 7 | Discovered exit to Access (range 73) 69874 | -2/Section 7 | Spotted Executioner 69876 | -2/Section 7 | Spotted Executioner 69879 | -2/Section 7 | Destroyed Executioner 69882 | -2/Section 7 | Destroyed Executioner 69896 | -2/Section 7 | Destroyed Striker 69898 | -2/Section 7 | Sterilization system engaged 69898 | -2/Section 7 | Non-combat units ordered to evacuate 69898 | -2/Section 7 | Spotted Executioner 69902 | -2/Section 7 | Spotted Striker 69904 | -2/Section 7 | Destroyed Executioner 69907 | -2/Section 7 | Destroyed Striker 69908 | -2/Section 7 | Spotted Executioner 69909 | -2/Section 7 | Destroyed Executioner 69932 | -2/Section 7 | Build established: Scavenger-Mutant 69943 | -2/Section 7 | Destroyed 31 combat bots 69998 | -2/Section 7 | Combat units ordered to evacuate 70027 | -2/Section 7 | Spotted Alpha 7 70028 | -2/Section 7 | Spotted Alpha 7 70062 | -2/Section 7 | Destroyed Alpha 7 70128 | -2/Section 7 | Destroyed Alpha 7 70198 | -2/Section 7 | Ambient heat levels rising (+10) 70257 | -2/Section 7 | Spotted B-99 Colossus 70321 | -2/Section 7 | Build established: Scavenger-Tank 70328 | -2/Section 7 | Spotted Executioner 70328 | -2/Section 7 | Spotted Executioner 70343 | -2/Section 7 | Destroyed Executioner 70344 | -2/Section 7 | Destroyed Executioner 70348 | -2/Section 7 | Ambient heat levels rising (+10) 70359 | -2/Section 7 | Found Corrupted Adv. Kinecellerator 70498 | -2/Section 7 | Ambient heat levels rising (+10) 70543 | -2/Section 7 | Spotted B-90 Cyclops 70550 | -2/Section 7 | Destroyed B-90 Cyclops 70593 | -2/Section 7 | Found Prototype Launcher 70594 | -2/Section 7 | Identified Mni. Smartbomb Launcher 70648 | -2/Section 7 | Ambient heat levels rising (+10) 70662 | -2/Section 7 | Entered Access 70662 | -1/Access | Evolved 2 slots: Utility x2 70909 | -1/Access | Build established: Scavenger-Mutant 70950 | -1/Access | First assault squad dispatched 71045 | -1/Access | High security lockdown imminent 71078 | -1/Access | Destroyed 7 combat bots 71125 | -1/Access | High security lockdown engaged 71250 | -1/Access | Destroyed 7 combat bots 71303 | -1/Access | Spotted Striker 71308 | -1/Access | Destroyed Striker 71308 | -1/Access | Destroyed Striker 71309 | -1/Access | Destroyed Executioner 71357 | -1/Access | Destroyed 15 combat bots 71364 | -1/Access | Found Corrupted Adv. Kinecellerator 71441 | -1/Access | Spotted Striker 71441 | -1/Access | Spotted Striker 71441 | -1/Access | Spotted Striker 71445 | -1/Access | Destroyed Striker 71445 | -1/Access | Destroyed Striker 71446 | -1/Access | Destroyed Striker 71450 | -1/Access | Destroyed Investigator 71473 | -1/Access | Destroyed 16 combat bots 71596 | -1/Access | Spotted Executioner 71600 | -1/Access | Destroyed Executioner 71604 | -1/Access | Destroyed Executioner 71625 | -1/Access | Destroyed 9 combat bots 71627 | -1/Access | Spotted Striker 71627 | -1/Access | Spotted Striker 71627 | -1/Access | Spotted Executioner 71632 | -1/Access | Destroyed Striker 71633 | -1/Access | Destroyed Striker 71637 | -1/Access | Destroyed Executioner 71645 | -1/Access | Spotted Executioner 71650 | -1/Access | Destroyed Executioner 71684 | -1/Access | Destroyed 18 combat bots 71786 | -1/Access | Destroyed Investigator 71809 | -1/Access | Destroyed 24 combat bots 71836 | -1/Access | Destroyed Striker 71895 | -1/Access | Spotted Executioner 71895 | -1/Access | Spotted Executioner 71898 | -1/Access | Destroyed Executioner 71898 | -1/Access | Spotted Striker 71921 | -1/Access | Destroyed Striker 71930 | -1/Access | Destroyed Executioner 71980 | -1/Access | Destroyed 9 combat bots 71980 | -1/Access | Used Integrity Redistributor, redistributed integrity from core (-537) 72022 | -1/Access | Spotted Striker 72027 | -1/Access | Destroyed Striker 72035 | -1/Access | Sterilization system engaged 72042 | -1/Access | Spotted Executioner 72042 | -1/Access | Spotted Striker 72046 | -1/Access | Destroyed Striker 72048 | -1/Access | Destroyed Executioner 72078 | -1/Access | Destroyed 19 combat bots 72094 | -1/Access | Spotted Striker 72094 | -1/Access | Spotted Striker 72098 | -1/Access | Destroyed Striker 72098 | -1/Access | Destroyed Executioner 72099 | -1/Access | Destroyed Striker 72335 | -1/Access | Ambient heat levels rising (+10) 72485 | -1/Access | Ambient heat levels rising (+10) 72544 | -1/Access | Found Exp. Terrain Scan Processor 72565 | -1/Access | Build established: Scavenger-Tank 72593 | -1/Access | Allied Derelicts emerged from ambush trap array 72635 | -1/Access | Ambient heat levels rising (+10) 72767 | -1/Access | Energy Cycler disabled 72785 | -1/Access | Ambient heat levels rising (+10) 72788 | -1/Access | Spotted B-99 Colossus 72791 | -1/Access | Spotted B-99 Colossus 72935 | -1/Access | Ambient heat levels rising (+10) 72954 | -1/Access | Build established: Scavenger-Mutant 73085 | -1/Access | Ambient heat levels rising (+10) 73235 | -1/Access | Ambient heat levels rising (+10) 73385 | -1/Access | Ambient heat levels rising (+10) 73535 | -1/Access | Ambient heat levels rising (+10) 73651 | -1/Access | Found Enh. Gamma Bomb Array 73656 | -1/Access | Found Enh. Gamma Bomb Array 73685 | -1/Access | Ambient heat levels rising (+10) 73835 | -1/Access | Ambient heat levels rising (+10) 73985 | -1/Access | Ambient heat levels rising (+10) 74135 | -1/Access | Ambient heat levels rising (+10) 74172 | -1/Access | Discovered new exit (range 3) 74175 | -1/Access | Entered Command 74425 | -1/Command | First assault squad dispatched 74479 | -1/Command | High security lockdown imminent 74506 | -1/Command | Destroyed 14 combat bots 74559 | -1/Command | High security lockdown engaged 74654 | -1/Command | Destroyed Executioner 74691 | -1/Command | Destroyed 16 combat bots 74756 | -1/Command | Spotted Executioner 74756 | -1/Command | Destroyed Executioner 74759 | -1/Command | Destroyed Investigator 74763 | -1/Command | Spotted Striker 74764 | -1/Command | Spotted Striker 74764 | -1/Command | Destroyed Striker 74766 | -1/Command | Destroyed Striker 74787 | -1/Command | Destroyed 15 combat bots 74886 | -1/Command | Spotted Striker 74888 | -1/Command | Destroyed Striker 74907 | -1/Command | Scanned by Researcher 74908 | -1/Command | Spotted Investigator 74909 | -1/Command | Destroyed Investigator 74933 | -1/Command | Destroyed 22 combat bots 75132 | -1/Command | Spotted Executioner 75132 | -1/Command | Spotted Striker 75135 | -1/Command | Destroyed Striker 75136 | -1/Command | Destroyed Executioner 75160 | -1/Command | Spotted Executioner 75160 | -1/Command | Spotted Striker 75160 | -1/Command | Spotted Striker 75164 | -1/Command | Destroyed Executioner 75165 | -1/Command | Destroyed Striker 75166 | -1/Command | Destroyed Striker 75188 | -1/Command | Destroyed 33 combat bots 75371 | -1/Command | Spotted Executioner 75371 | -1/Command | Spotted Striker 75373 | -1/Command | Destroyed Executioner 75377 | -1/Command | Spotted Striker 75377 | -1/Command | Spotted Striker 75378 | -1/Command | Destroyed Striker 75381 | -1/Command | Destroyed Striker 75386 | -1/Command | Destroyed Executioner 75389 | -1/Command | Spotted Striker 75395 | -1/Command | Destroyed Striker 75401 | -1/Command | Spotted Striker 75409 | -1/Command | Destroyed Striker 75409 | -1/Command | Destroyed Striker 75431 | -1/Command | Spotted Striker 75432 | -1/Command | Spotted Striker 75439 | -1/Command | Destroyed Striker 75448 | -1/Command | Destroyed Striker 75476 | -1/Command | Destroyed 36 combat bots 75720 | -1/Command | Destroyed Investigator 76489 | -1/Command | Spotted B-99 Colossus 76550 | -1/Command | Core integrity fell below 50% 76611 | -1/Command | Destroyed B-99 Colossus 76640 | -1/Command | Found Prototype Ballistic Gun 76640 | -1/Command | Identified Multirail 76801 | -1/Command | Found Thermal Barrier 77241 | -1/Command | Found Quantum Capacitor 77400 | -1/Command | Build established: Scavenger-Tank 77731 | -1/Command | Destroyed 9 combat bots 77946 | -1/Command | Found Antimissile System 77967 | -1/Command | Build established: Scavenger-Gunner 78221 | -1/Command | Spotted Combat Programmer 78221 | -1/Command | Spotted Combat Programmer 78231 | -1/Command | Destroyed Combat Programmer 78233 | -1/Command | Spotted M Guard 78236 | -1/Command | Spotted M Guard 78250 | -1/Command | Destroyed Combat Programmer 78262 | -1/Command | Destroyed M Guard 78272 | -1/Command | Destroyed M Guard 78272 | -1/Command | All MAIN.C guards destroyed 78284 | -1/Command | Found Corrupted Prototype Device 78284 | -1/Command | Identified AEGIS Remote Shield 78304 | -1/Command | Found Corrupted Prototype Reactor 78304 | -1/Command | Identified Zero-point Reactor 78490 | -1/Command | Found Corrupted AEGIS Remote Shield 78502 | -1/Command | Found Corrupted Prototype Launcher 78527 | -1/Command | Identified Ragnarok Missile Launcher 79415 | -1/Command | Build established: Scavenger-Mutant 79761 | -1/Command | Build established: Scavenger-Tank 80514 | -1/Command | Identified Subatomic Replicator 80514 | -1/Command | Used Subatomic Replicator to replicate Integrity Redistributor 80652 | -1/Command | Used Integrity Redistributor, redistributed integrity to core (+792) 81224 | -1/Command | Used Integrity Redistributor, redistributed integrity from core (-463) 81583 | -1/Command | Found Thermal Barrier 81742 | -1/Command | Met MAIN.C 81751 | -1/Command | Destroyed MAIN.C Shell 81751 | -1/Command | 0b10 Conduit disabled 81752 | -1/Command | Surrendered to MAIN.C 81752 | -1/Command | Loaded intel: 56 machine locations 81752 | -1/Command | Loaded intel: 102 trap records 81752 | -1/Command | Identified exit to Surface 81752 | -1/Command | Discovered exit to Surface (range 46) 81752 | -1/Command | Discovered exit to Surface (range 85) 81899 | -1/Command | Door terminal overloaded 81921 | -1/Command | Found Prototype Launcher 81921 | -1/Command | Identified Z-bomb Delivery System 81932 | -1/Command | Found Zero-point Reactor 81935 | -1/Command | Found Zero-point Reactor 81950 | -1/Command | Found Prototype Device 81950 | -1/Command | Identified Femtoactuators 81954 | -1/Command | Found Prototype Device 81954 | -1/Command | Identified Exp. Weapon Cycler 81957 | -1/Command | Found Prototype Processor 81957 | -1/Command | Identified Exp. Target Analyzer 82035 | -1/Command | MAIN.C activated Command garrisons 82076 | -1/Command | Unknown forces attacked Command 82076 | -1/Command | Spotted EQ-003 82076 | -1/Command | Spotted EQ-004 82076 | -1/Command | Spotted EQ-001 82076 | -1/Command | Spotted EQ-005 82076 | -1/Command | Spotted EQ-002 82076 | -1/Command | Spotted EQ-006 82085 | -1/Command | Destroyed EQ-002 82091 | -1/Command | Destroyed EQ-005 82092 | -1/Command | Destroyed EQ-006 82097 | -1/Command | Destroyed EQ-004 82108 | -1/Command | Destroyed EQ-003 82132 | -1/Command | Spotted EQ-009 82139 | -1/Command | Spotted EQ-000 82145 | -1/Command | Destroyed EQ-000 82169 | -1/Command | Spotted EQ-018 82170 | -1/Command | Spotted EQ-021 82170 | -1/Command | Spotted EQ-019 82170 | -1/Command | Spotted EQ-020 82170 | -1/Command | Spotted EQ-023 82172 | -1/Command | Spotted EQ-022 82173 | -1/Command | Destroyed EQ-020 82176 | -1/Command | Destroyed EQ-023 82188 | -1/Command | Destroyed EQ-018 82192 | -1/Command | Destroyed EQ-022 82196 | -1/Command | Spotted EQ-037 82200 | -1/Command | Destroyed EQ-021 82202 | -1/Command | Spotted EQ-033 82203 | -1/Command | Spotted EQ-016 82206 | -1/Command | Destroyed EQ-016 82215 | -1/Command | Destroyed EQ-033 82237 | -1/Command | Destroyed 10 combat bots 82288 | -1/Command | Spotted EQ-038 82288 | -1/Command | Spotted EQ-039 82293 | -1/Command | Destroyed EQ-038 82367 | -1/Command | Spotted EQ-041 82374 | -1/Command | Destroyed EQ-041 82406 | -1/Command | Spotted EQ-070 82406 | -1/Command | Spotted EQ-061 82406 | -1/Command | Spotted EQ-060 82406 | -1/Command | Spotted EQ-063 82411 | -1/Command | Destroyed EQ-070 82416 | -1/Command | Destroyed EQ-063 82417 | -1/Command | Spotted EQ-083 82420 | -1/Command | Spotted EQ-062 82425 | -1/Command | Destroyed EQ-083 82436 | -1/Command | Spotted EQ-040 82441 | -1/Command | Destroyed EQ-062 82455 | -1/Command | Spotted EQ-074 82466 | -1/Command | Destroyed EQ-074 82506 | -1/Command | Spotted EQ-085 82506 | -1/Command | Spotted EQ-084 82506 | -1/Command | Spotted EQ-086 82506 | -1/Command | Spotted EQ-108 82514 | -1/Command | Destroyed EQ-085 82518 | -1/Command | Destroyed EQ-086 82529 | -1/Command | Destroyed EQ-084 82532 | -1/Command | Spotted EQ-031 82533 | -1/Command | Spotted EQ-098 82535 | -1/Command | Spotted EQ-054 82539 | -1/Command | Destroyed EQ-098 82540 | -1/Command | Attackers retreated from Command 82540 | *** | Fortifying 0b10! Last Messages --------------- 82530_ Acquired 70 matter. 82530_ Acquired 8 matter. 82530_ Acquired 10 matter. 82530_ Acquired 96 matter. 82530_ Acquired 7 matter. 82530_ Acquired 4 matter. 82532_ EQ-031 destroyed. 82536_ EQ-054 knocked back. 82536_ Core Membrane filtered system corruption (1). 82538_ Destroyed Prototype Device. 82539_ EQ-054 knocked back. 82539_ EQ-098 destroyed. 82540_ ALERT: Enemy forces retreating. MAIN.C: I admit your assistance was pivotal here. It looks like I was right to trust you. This attack appears to have been designed to merely test our defenses, although it was nearly effective enough to force me to take the conflict to the next level. Investigating the origins of these bots should be one of our highest priorities... Map ----- +----------------------------------------------------+ | #??????# #????????????????????????????????????#?# | | #??????#"#####????????????????????????????????#?# | | #??????# #????????????????????????????????#?# | | #??????# #????????????????????????????????#?# | | #??????# ! #????????????????????????????????#?# | | #??????# #????????????????????????????????#?# | | #??????# #????????????????????????????????#?# | | #??????## ##????????????????????????????????#?# | | #####???# #????????????????????????????????#?# | | ## #???# #?###########################????#?# | | ## ##### #?#?????????????????????##??#????#?# | | ! #?#?####################;####????#?# | | ! #?#?#"""" "" !%*= ;######### | | % % #?#?#"" [%[% #?#??????? | | %=[ #?#?#""""" != %#;######## | | =[ #?#?#"""" "" =% =%* | | % #?#?#" " " * % != | | #?#?#"" " """" !*! %%% | | #?#?#"" "" " !%* ! % ########## | | #?#?# " " ! % #?#??????? | | #?#?# " ! ########## | | #?#?# " !% [M!%!% "#?#????#?# | | #?#?# ! %!*%!!] "" #?#????#?# | | ""T"" #?###!%% !!!=!!!! ""#?#????#?# | | """"" #?#!#=!%=*!!%![*%!% %%""""#?#????#?# | | ########## [ [?#![ !=!=%@![=%=%% %% #?#????#?# | | # #= %% ####!*!!=!!!=!![ %! %!%" #?#????#?# | | # !!!%=!!!*]]]%!!! %!!=*%#?#????#?# | | # = ==!=!=][!% *!! %=!= #?#????#?# | | # ! !!][= * % !!%*[ #?#????#?# | | # # #####!!!% " " !*! #?#????#?# | | #[ %?#?#!% " " "% "" " #?#????#?# | | ]%% % " # ??#?# "" " " " #?#????#?# | | =#= # ?#???#?#######################?#????#?# | | #% #??????#?????????????????????????#????#?# | | ##########??????###########################????#?# | | ???????????????????????????????????????????????#?# | | ######?????????????????????????????????????????#?# | | # #?????????????????????????????????????????#?# | | # < #?????????????????????????????????????????#?# | | # #?????????????????????????????????????????#?# | | ### #?????????????????????????????????????????#?# | | ### #?????????????????????????????????????????#?# | | #?????????????????????????????????????????#?# | | #?????????????????????????????????????????#?# | | #?????????????????????????????????????????#?# | | #?????????????????????????????????????????#?# | | #?????????????????????????????????????????#?# | | #?????????????????????????????????????????#?# | | ######?????????????????????????????????????????#?# | +----------------------------------------------------+ Best States ------------- Heat Dissipation 161 Coolant Potential 120 Energy Generation 108 Energy Capacity 2550 Matter Stores 716 Matter Capacity 800 Sight Range 23 Robot Scan Range 20 Terrain Scan Range 16 Terrain Scan Density 10 Jamming Range 16 Cloak Strength 4 Power Amplification 40 Additional Mass Support 20 Armor Coverage 3200 Resistance: KI 30 Resistance: TH 50 Resistance: EX 15 Resistance: EM 75 Resistance: I 15 Resistance: S 15 Resistance: P 15 Utility Shielding 66 Weapon Shielding 100 Point Defense Rating 240 Weapon Cycling 30 Melee Speed Boost 30 Phase Shifting 20 Evasion (%) 60 Targeting Accuracy 28 Melee Accuracy 12 Core Analysis 8 Recoil Reduction 6 Matter Filtering 50 Energy Filtering 50 Particle Charging 30 Kinecelleration 50 Offensive Hacking 12 Authchip Count 5 Item Schematics ----------------- Adv. Weapon Cycler | -8/Materials | Scanalyzed Adv. Transmission Jammer | -8/Materials | Scanalyzed Assault Drone Bay | -5/Zhirov | Free Exp. Heat Sink | -5/Zhirov | Free Exp. Optical Array | -5/Zhirov | Free Imp. Arc Thrower | -5/Zhirov | Free Centrium Heavy Treads | -4/Factory | Scanalyzed Enh. Gamma Bomb Array | -3/Research | Hacked Hvy. Tesla Rifle | -2/Quarantine | Archive Thermal Barrier | -2/Quarantine | Archive Point Singularity Launcher | -2/Quarantine | Archive Hdn. Centrium Leg | -2/Quarantine | Archive Gui. Micro-nuke Launcher | -2/Quarantine | Archive Exp. Targeting Computer | -2/Section 7 | Archive Robot Schematics ------------------ T-07 Excavator | -2/Section 7 | Archive Fabricated ------------ Adv. Transmission Jammer | x1 | -5/Factory Adv. Weapon Cycler | x2 | -3/Research | Authchip Enh. Gamma Bomb Array | x1 | -3/Armory | Authchip Adv. Transmission Jammer | x1 | -3/Armory | Authchip Enh. Gamma Bomb Array | x1 | -3/Armory | Authchip Centrium Heavy Treads | x1 | -3/Armory | Authchip Centrium Heavy Treads | x1 | -3/Armory | Authchip Centrium Heavy Treads | x1 | -3/Armory | Authchip Alien Tech Used ----------------- Dimensional Node Initializer Integrated Dissipator Core Expander Transdimensional Reconstructor Integrated Mediator Core Regenerator Sigix Terminator Core Membrane Integrity Redistributor Subatomic Replicator Achievements -------------- None Challenges ------------ None Game ------ Seed MeleeCooledReactor Manual? 0 Play Time 13:15:34 Cumulative 480.3 hours Start 2024.01.24 @ 13:27:08 End 2024.02.24 @ 16:19:18 Sessions 25 Manual Loads 0 Difficulty Rogue Special Mode None Game No. 178 Rogue 178 Adventurer 0 Explorer 0 Win Type 8 Total 23 Types 8/1/5/3/0/0/4/1/1 Lore% 93 Gallery% 95 Achievement% 83 Wizard Run 0 Options --------- ASCII 0 Keyboard 1 Movement Arrows Keybinds 0 Fullscreen 2 Font 18/X11 Map View 76x50 Tactical HUD 1 Map Filters NONE Filters NONE Steam 1 RUN: 84aee114-f85b-4278-9fe5-5f9ed9feb68a